Workbook

Sheet MultiStrategy-Monthly
A1: Multi Strategy Performance
A2: (20% performance fee deducted monthly, based on HWM) | J2: - Back testing results of the currently traded strategies
C5: Str. 1 | D5: Str. 2 | E5: Str. 3 | F5: Str. 4 | G5: Str. 5 | H5: Str. 6
A6: Month # | B6: Month | C6: FXQ9 | D6: FXIA | E6: FXBQ | F6: V1 | G6: V2 | H6: V4 | I6: Comb. ROR (Before Fee) | J6: ROR<RF | K6: VAMI | L6: Max. VAMI | M6: Drawdown | N6: Perf. Fee | O6: ROR Net of Fee | P6: VAMI Net of Fees | Q6: SPX ROR | R6: SPX VAMI | S6: Strategy-SPX ROR
A7: 0 | B7: 2010-11-01 | K7: 1000 | L7: 1000 | P7: 1000 | R7: 1000 | U7: Strategy weightings
A8: 1 | B8: 2010-12-01 | C8: -0.0001506190165 | D8: 0.01021289732 | E8: 0.001307093771 | F8: 0.0702 | G8: 0.0159 | H8: 0.0711 | I8: =($U$9*C8+$V$9*D8+$W$9*E8+$X$9*F8+$Y$9*G8+$Z$9*H8)*$AA$9 -> 0.03372061719 | J8: =IF(I8<$X$15/12,I8-$X$15/12,"") ->  | K8: =K7*(1+I8) -> 1033.720617 | L8: =MAX(K8,L7) -> 1033.720617 | M8: =K8/L8-1 -> 0 | N8: =IF(M8=0,0.2*(K8/L7-1),0) -> 0.006744123438 | O8: =I8-N8 -> 0.02697649375 | P8: =P7*(1+O8) -> 1026.976494 | Q8: -0.1099191166 | R8: =R7*(1+Q8) -> 890.0808834 | S8: =I8-Q8 -> 0.1436397338 | U8: FXQ | V8: FXIA | W8: FXBQ | X8: V1 | Y8: V2 | Z8: V4 | AA8: Overlever.
A9: 2 | B9: 2011-01-01 | C9: 0.01707463712 | D9: 0.02037103102 | E9: 0.01549354848 | F9: 0.021 | G9: -0.0036 | H9: 0.0394 | I9: =($U$9*C9+$V$9*D9+$W$9*E9+$X$9*F9+$Y$9*G9+$Z$9*H9)*$AA$9 -> 0.02195223289 | K9: 1056.413093 | L9: =MAX(K9,L8) -> 1056.413093 | M9: =K9/L9-1 -> 0 | N9: 0.004390446578 | O9: 0.01756178631 | P9: 1045.012035 | Q9: 0.08538974289 | R9: 966.0846612 | S9: -0.06343751 | U9: 0.1667 | V9: 0.1667 | W9: 0.1667 | X9: 0.1667 | Y9: 0.1667 | Z9: 0.1667 | AA9: 1.2
A10: 3 | B10: 2011-02-01 | C10: 0.00387889822 | D10: 0.007341710851 | E10: 0.005007987376 | F10: 0.0091 | G10: 0.0108 | H10: 0.0173 | I10: 0.01068785643 | K10: =K9*(1+I10) -> 1067.703884 | L10: =MAX(K10,L9) -> 1067.703884 | M10: =K10/L10-1 -> 0 | N10: 0.002137571287 | O10: 0.008550285147 | P10: 1053.947186 | Q10: 0.09392507551 | R10: =R9*(1+Q10) -> 1056.824236 | S10: -0.08323721908 | U10: 0.4666666985 | V10: 0 | W10: 0 | X10: 0.06666667014 | Y10: 0.4000000358 | Z10: 0.06666660309 | AA10: - Optimal weights
A11: 4 | B11: 2011-03-01 | C11: 0.001841390273 | D11: -0.00371260941 | E11: 0.003749528201 | F11: 0.0218 | G11: -0.0015 | H11: -0.0055 | I11: 0.003336328945 | K11: =K10*(1+I11) -> 1071.266096 | L11: =MAX(K11,L10) -> 1071.266096 | M11: =K11/L11-1 -> 0 | N11: 0.000667265789 | O11: 0.002669063156 | P11: 1056.760238 | Q11: 0.05308142666 | R11: =R10*(1+Q11) -> 1112.921974 | S11: -0.04974509771 | U11: 0.1667 | V11: 0.1667 | W11: 0.1667 | X11: 0.1667 | Y11: 0.1667 | Z11: 0.1667 | AA11: - Equal weights
A12: 5 | B12: 2011-04-01 | C12: 0.0009383873548 | D12: -0.008653959259 | E12: 0.002467202954 | F12: 0.0345 | G12: 0.0091 | H12: 0.0597 | I12: 0.01961424828 | K12: =K11*(1+I12) -> 1092.278175 | L12: =MAX(K12,L11) -> 1092.278175 | M12: =K12/L12-1 -> 0 | N12: 0.003922849655 | O12: 0.01569139862 | P12: 1073.342284 | Q12: 0.0004243096808 | R12: =R11*(1+Q12) -> 1113.394198 | S12: 0.01918993859
A13: 6 | B13: 2011-05-01 | C13: 0.004911636934 | D13: 0.005743117537 | E13: 0.007048405241 | F13: 0.0062 | G13: 0.0014 | H13: 0.004 | I13: 0.005861804069 | K13: =K12*(1+I13) -> 1098.680896 | L13: =MAX(K13,L12) -> 1098.680896 | M13: =K13/L13-1 -> 0 | N13: 0.001172360814 | O13: 0.004689443255 | P13: 1078.375662 | Q13: 0.0738964471 | R13: =R12*(1+Q13) -> 1195.670073 | S13: -0.06803464303 | U13: Performance Statistics (Before Fees) | Z13: Performance Statistics (Net of Fees) | AE13: Optimal portfolio, before fees
A14: 7 | B14: 2011-06-01 | C14: 0.01159471367 | D14: 0.01278653182 | E14: 0.01358227432 | F14: 0.0021 | G14: 0.0004 | H14: -0.028 | I14: 0.002493202502 | K14: =K13*(1+I14) -> 1101.42013 | L14: =MAX(K14,L13) -> 1101.42013 | M14: =K14/L14-1 -> 0 | N14: =IF(M14=0,0.2*(K14/L13-1),0) -> 0.0004986405003 | O14: =I14-N14 -> 0.001994562001 | P14: =P13*(1+O14) -> 1080.526549 | Q14: 0.03356017337 | R14: =R13*(1+Q14) -> 1235.796968 | S14: =I14-Q14 -> -0.03106697087 | U14: Trading period, months: | X14: =A45 -> 38 | Y14: < Change formula | AE14: (by Sharpe Ratio)
A15: 8 | B15: 2011-07-01 | C15: 0.0009167664684 | D15: 0.001351104584 | E15: -0.003456619568 | F15: -0.034 | G15: 0.007 | H15: -0.0058 | I15: -0.006799109253 | J15: -0.007632442587 | K15: =K14*(1+I15) -> 1093.931454 | L15: =MAX(K15,L14) -> 1101.42013 | M15: =K15/L15-1 -> -0.006799109253 | N15: =IF(M15=0,0.2*(K15/L14-1),0) -> 0 | O15: =I15-N15 -> -0.006799109253 | P15: =P14*(1+O15) -> 1073.179931 | Q15: 0.03571358586 | R15: =R14*(1+Q15) -> 1279.931709 | S15: =I15-Q15 -> -0.04251269511 | U15: RF rate: | X15: 0.01
A16: 9 | B16: 2011-08-01 | C16: -0.001591625158 | D16: -0.0198992081 | E16: 0.007133249193 | F16: 0.044 | G16: 0.0377 | H16: -0.008 | I16: 0.01187085688 | K16: =K15*(1+I16) -> 1106.917357 | L16: =MAX(K16,L15) -> 1106.917357 | M16: =K16/L16-1 -> 0 | N16: =IF(M16=0,0.2*(K16/L15-1),0) -> 0.0009982072756 | O16: =I16-N16 -> 0.01087264961 | P16: =P15*(1+O16) -> 1084.84824 | Q16: -0.01975271269 | R16: =R15*(1+Q16) -> 1254.649586 | S16: =I16-Q16 -> 0.03162356957 | U16: Growth of $1,000 (VAMI) | X16: =INDIRECT(ADDRESS(NM+7,11)) -> 1473.114875 | Z16: Growth of $1,000 (VAMI) | AC16: =INDIRECT(ADDRESS(NM+7,16)) -> 1364.220061 | AE16: 1402.787422
A17: 10 | B17: 2011-09-01 | C17: 0.03076974303 | D17: 0.05150451884 | E17: 0.006430260837 | F17: -0.0261 | G17: -0.0022 | H17: -0.0023 | I17: 0.01162322872 | K17: =K16*(1+I17) -> 1119.783311 | L17: =MAX(K17,L16) -> 1119.783311 | M17: =K17/L17-1 -> 0 | N17: =IF(M17=0,0.2*(K17/L16-1),0) -> 0.002324645744 | O17: =I17-N17 -> 0.009298582977 | P17: =P16*(1+O17) -> 1094.935792 | Q17: 0.05736399695 | R17: =R16*(1+Q17) -> 1326.621301 | S17: =I17-Q17 -> -0.04574076823 | U17: Comp. annualized ROR: | X17: =POWER($X$16/1000,12/NM)-1 -> 0.1301272635 | Z17: Comp. annualized ROR: | AC17: =POWER($AC$16/1000,12/NM)-1 -> 0.1030497073 | AE17: 0.1128035004
A18: 11 | B18: 2011-10-01 | C18: 0.0132522434 | D18: 0.01137170941 | E18: 0.01114995219 | F18: 0.0468 | G18: 0.0246 | H18: 0.0241 | I18: 0.02626003196 | K18: =K17*(1+I18) -> 1149.188857 | L18: =MAX(K18,L17) -> 1149.188857 | M18: =K18/L18-1 -> 0 | N18: =IF(M18=0,0.2*(K18/L17-1),0) -> 0.005252006391 | O18: =I18-N18 -> 0.02100802556 | P18: =P17*(1+O18) -> 1117.938231 | Q18: 0.01777059774 | R18: =R17*(1+Q18) -> 1350.196154 | S18: =I18-Q18 -> 0.008489434217 | U18: Annualized ROR volatility: | X18: =STDEV(OFFSET(I8,0,0,NM,1))*SQRT(12) -> 0.04061049333 | Z18: Annualized ROR volatility: | AC18: =STDEV(OFFSET(O8,0,0,NM,1))*SQRT(12) -> 0.0343321374 | AE18: 0.02591055339
A19: 12 | B19: 2011-11-01 | C19: 0.01432745997 | D19: 0.01803011633 | E19: 0.007785517722 | F19: 0.0055 | G19: 0.0043 | H19: -0.0064 | I19: 0.008710360529 | K19: =K18*(1+I19) -> 1159.198706 | L19: =MAX(K19,L18) -> 1159.198706 | M19: =K19/L19-1 -> 0 | N19: =IF(M19=0,0.2*(K19/L18-1),0) -> 0.001742072106 | O19: =I19-N19 -> 0.006968288423 | P19: =P18*(1+O19) -> 1125.728347 | Q19: -0.0369742624 | R19: =R18*(1+Q19) -> 1300.273648 | S19: =I19-Q19 -> 0.04568462293 | U19: Annualized downside deviation: | X19: =STDEV(OFFSET(J8,0,0,NM,1))*SQRT(12) -> 0.01014220239 | Z19: Annualized downside deviation: | AC19: =$X$19 -> 0.01014220239 | AE19: 0.008973686074
A20: 13 | B20: 2011-12-01 | C20: 0.003604379483 | D20: 0.004999594297 | E20: 0.003728173207 | F20: 0.0208 | G20: 0.011 | H20: 0.0073 | I20: 0.01028848668 | K20: =K19*(1+I20) -> 1171.125106 | L20: =MAX(K20,L19) -> 1171.125106 | M20: =K20/L20-1 -> 0 | N20: =IF(M20=0,0.2*(K20/L19-1),0) -> 0.002057697337 | O20: =I20-N20 -> 0.008230789347 | P20: =P19*(1+O20) -> 1134.99398 | Q20: 0.02851369346 | R20: =R19*(1+Q20) -> 1337.349252 | S20: =I20-Q20 -> -0.01822520678 | U20: Worst drawdown: | X20: =MIN(OFFSET(M8,0,0,NM,1)) -> -0.01495131479 | Z20: Worst drawdown: | AC20: =$X$20 -> -0.01495131479 | AE20: -0.00730576579
A21: 14 | B21: 2012-01-01 | C21: -0.01326989941 | D21: -0.02092905901 | E21: -0.01657921076 | F21: 0.0381 | G21: 0.0008 | H21: 0.0732 | I21: 0.01226681904 | J21: =IF(I21<$X$15/12,I21-$X$15/12,"") ->  | K21: =K20*(1+I21) -> 1185.491086 | L21: =MAX(K21,L20) -> 1185.491086 | M21: =K21/L21-1 -> 0 | N21: =IF(M21=0,0.2*(K21/L20-1),0) -> 0.002453363807 | O21: =I21-N21 -> 0.009813455229 | P21: =P20*(1+O21) -> 1146.132192 | Q21: 0.05879636755 | R21: =R20*(1+Q21) -> 1415.98053 | S21: =I21-Q21 -> -0.04652954852 | U21: Sharpe ratio: | X21: =($X$17-$X$15)/$X$18 -> 2.95803507 | Z21: Sharpe ratio: | AC21: =($AC$17-$X$15)/$AC$18 -> 2.710280056 | AE21: 3.967630442
A22: 15 | B22: 2012-02-01 | C22: 0.0048748767 | D22: 0.005191043019 | E22: 0.007270781323 | F22: -0.0027 | G22: 0.012 | H22: 0.0163 | I22: 0.008589057677 | K22: 1195.673337 | L22: 1195.673337 | M22: 0 | N22: 0.001717811535 | O22: 0.006871246141 | P22: 1154.007549 | Q22: 0.01475077602 | R22: 1436.867342 | S22: -0.006161718342 | U22: Sortino Ratio: | X22: =($X$17-$X$15)/$X$19 -> 11.8442976 | Z22: Sortino Ratio: | AC22: =($AC$17-$X$15)/$AC$19 -> 9.174507042 | AE22: 11.45610617
A23: 16 | B23: 2012-03-01 | C23: 0.003396739019 | D23: 0.008446701802 | E23: 0.01669565216 | F23: 0.0494 | G23: 0.0239 | H23: 0.0805 | I23: 0.03647511216 | K23: 1239.285656 | L23: 1239.285656 | M23: 0 | N23: 0.007295022432 | O23: 0.02918008973 | P23: 1187.681592 | Q23: -0.08196818013 | R23: 1319.08994 | S23: 0.1184432923 | U23: Calmar Ratio: | X23: =-$X$17/$X$20 -> 8.703399353 | Z23: Calmar Ratio: | AC23: =-$AC$17/$AC$20 -> 6.892350856 | AE23: 15.44033899
A24: 17 | B24: 2012-04-01 | C24: 0.006830822211 | D24: 0.007878142409 | E24: 0.005130182952 | F24: 0.0036 | G24: 0.0081 | H24: -0.0008 | I24: 0.00614905908 | K24: 1246.906097 | L24: 1246.906097 | M24: 0 | N24: 0.001229811816 | O24: 0.004919247264 | P24: 1193.524092 | Q24: -0.05390991454 | R24: 1247.977914 | S24: 0.06005897362 | U24: Max. monthly ROR: | X24: =MAX(OFFSET(I8,0,0,NM,1)) -> 0.03647511216 | Z24: Max. monthly ROR: | AC24: =MAX(OFFSET(O8,0,0,NM,1)) -> 0.02918008973 | AE24: 0.02490125622
A25: 18 | B25: 2012-05-01 | C25: -0.001687437529 | D25: 0.001665499411 | E25: 0.006578585133 | F25: -0.0324 | G25: 0.0173 | H25: -0.0133 | I25: -0.004369544331 | J25: -0.005202877664 | K25: 1241.457686 | L25: 1246.906097 | M25: -0.004369544331 | N25: 0 | O25: -0.004369544331 | P25: 1188.308935 | Q25: 0.06879923934 | R25: 1333.837846 | S25: -0.07316878367 | U25: Min. monthly ROR: | X25: =MIN(OFFSET(I8,0,0,NM,1)) -> -0.0113062608 | Z25: Min. monthly ROR: | AC25: =MIN(OFFSET(O8,0,0,NM,1)) -> -0.0113062608 | AE25: -0.005643998765
A26: 19 | B26: 2012-06-01 | C26: 0.001052118489 | D26: -0.001696062973 | E26: -0.005615726113 | F26: 0.0468 | G26: -0.0023 | H26: 0.0377 | I26: 0.01519110349 | K26: 1260.316798 | L26: 1260.316798 | M26: 0 | N26: 0.002151036192 | O26: 0.0130400673 | P26: 1203.804564 | Q26: -0.04744959558 | R26: 1270.547779 | S26: 0.06264069908 | U26: Annual. Alpha, rel. to SPY: | X26: =12*INTERCEPT(OFFSET(I8,0,0,NM,1),OFFSET(Q8,0,0,NM,1)) -> 0.1435698837 | Z26: Annual. Alpha, rel. to SPY: | AC26: =12*INTERCEPT(OFFSET(O8,0,0,NM,1),OFFSET(Q8,0,0,NM,1)) -> 0.1158664233 | AE26: 0.1182366983
A27: 20 | B27: 2012-07-01 | C27: -0.01986542717 | D27: -0.0306965597 | E27: -0.02258663066 | F27: 0.0122 | G27: 0.0184 | H27: 0.031 | I27: -0.002310185449 | J27: -0.003143518782 | K27: 1257.405232 | L27: 1260.316798 | M27: -0.002310185449 | N27: 0 | O27: -0.002310185449 | P27: 1201.023552 | Q27: 0.09236457897 | R27: 1387.90139 | S27: -0.09467476441 | U27: Beta, rel. to SPY: | X27: =SLOPE(OFFSET(I8,0,0,NM,1),OFFSET(Q8,0,0,NM,1)) -> -0.1069920313 | Z27: Beta, rel. to SPY: | AC27: =SLOPE(OFFSET(O8,0,0,NM,1),OFFSET(Q8,0,0,NM,1)) -> -0.09077776619 | AE27: -0.05696570048
A28: 21 | B28: 2012-08-01 | C28: 0.002240289235 | D28: 0.0003083487973 | E28: 0.02444494702 | F28: 0.0243 | G28: 0.0014 | H28: 0.0366 | I28: 0.01786228875 | K28: 1279.865368 | L28: 1279.865368 | M28: 0 | N28: 0.003102167621 | O28: 0.01476012113 | P28: 1218.750805 | Q28: 0.03229690117 | R28: 1432.726304 | S28: -0.01443461242 | U28: Correlation, rel. to SPY: | X28: =CORREL(OFFSET(I8,0,0,NM,1),OFFSET(Q8,0,0,NM,1)) -> -0.4698245549 | Z28: Correlation, rel. to SPY: | AC28: =CORREL(OFFSET(O8,0,0,NM,1),OFFSET(Q8,0,0,NM,1)) -> -0.4715211667 | AE28: -0.3920661037
A29: 22 | B29: 2012-09-01 | C29: 0.009616958909 | D29: 0.00873 | E29: 0.0139883738 | F29: 0.0316 | G29: 0.0036 | H29: 0.0636 | I29: 0.02623231196 | K29: 1313.439195 | L29: 1313.439195 | M29: 0 | N29: 0.005246462391 | O29: 0.02098584956 | P29: 1244.327326 | Q29: -0.002290282778 | R29: 1429.444956 | S29: 0.02852259473 | U29: Kurtosis of monthly ROR: | X29: =KURT(OFFSET(I8,0,0,NM,1)) -> -0.4270643553 | Z29: Kurtosis of monthly ROR: | AC29: =KURT(OFFSET(O8,0,0,NM,1)) -> -0.4784185262 | AE29: -0.5969892885
A30: 23 | B30: 2012-10-01 | C30: 0.004769013729 | D30: 0.00746 | E30: 0.001404050039 | F30: -0.0164 | G30: 0.01 | H30: -0.02 | I30: -0.002553897924 | J30: -0.003387231257 | K30: 1310.084806 | L30: 1313.439195 | M30: -0.002553897924 | N30: 0 | O30: -0.002553897924 | P30: 1241.149441 | Q30: 0.065300072 | R30: 1522.787814 | S30: -0.06785396992 | U30: Skewness of monthly ROR: | X30: =SKEW(OFFSET(I8,0,0,NM,1)) -> 0.3296199676 | Z30: Skewness of monthly ROR: | AC30: =SKEW(OFFSET(O8,0,0,NM,1)) -> 0.2126702153 | AE30: 0.3319702942
A31: 24 | B31: 2012-11-01 | C31: 0.009035997093 | D31: 0.00563 | E31: 0.004120700993 | F31: 0.0196 | G31: 0.0158 | H31: 0.0395 | I31: 0.01874108708 | K31: 1334.637219 | L31: 1334.637219 | M31: 0 | N31: 0.003227865268 | O31: 0.01551322182 | P31: 1260.403668 | Q31: 0.02264559015 | R31: 1557.272243 | S31: -0.003904503068 | U31: # Profitable months | X31: =COUNTIF(OFFSET(I8,0,0,NM,1),">=0") -> 30 | Z31: # Winning months | AC31: =COUNTIF(OFFSET(O8,0,0,NM,1),">=0") -> 30 | AE31: 35
A32: 25 | B32: 2012-12-01 | C32: -0.003765355796 | D32: -0.00229 | E32: -0.0006554728607 | F32: -0.0191 | G32: 0.0468 | H32: -0.04 | I32: -0.003802926164 | J32: -0.004636259498 | K32: 1329.561692 | L32: 1334.637219 | M32: -0.003802926164 | N32: 0 | O32: -0.003802926164 | P32: 1255.610446 | Q32: 0.03195658259 | R32: 1607.037342 | S32: -0.03575950875 | U32: # Losing months | X32: =COUNTIF(OFFSET(I8,0,0,NM,1),"<0") -> 8 | Z32: # Losing months | AC32: =COUNTIF(OFFSET(O8,0,0,NM,1),"<0") -> 8 | AE32: 3
A33: 26 | B33: 2013-01-01 | C33: 0.00056 | D33: 0.00228 | E33: -0.0021 | F33: 0.0767 | G33: 0.0102 | H33: 0.0556 | I33: 0.0286537296 | K33: 1367.658594 | L33: 1367.658594 | M33: 0 | N33: 0.004948367084 | O33: 0.02370536252 | P33: 1285.375147 | Q33: -0.001047301879 | R33: 1605.354289 | S33: 0.02970103148 | U33: % Profitable months: | X33: =$X$31/($X$31+$X$32) -> 0.7894736842 | Z33: % Profitable months: | AC33: =$AC$31/($AC$31+$AC$32) -> 0.7894736842 | AE33: 0.9210526316
A34: 27 | B34: 2013-02-01 | C34: 0.01557 | D34: 0.02302 | E34: 0.01932 | F34: -0.0085 | G34: -0.0001 | H34: -0.002 | I34: 0.0094638924 | K34: 1380.601967 | L34: 1380.601967 | M34: 0 | N34: 0.00189277848 | O34: 0.00757111392 | P34: 1295.106868 | Q34: 0.02849535763 | R34: 1651.099433 | S34: -0.01903146523 | U34: Average positive monthly ROR: | X34: =SUMIF(OFFSET(I8,0,0,NM,1),">0")/$X$31 -> 0.01440623138 | Z34: Average positive monthly ROR: | AC34: =SUMIF(OFFSET(O8,0,0,NM,1),">0")/$AC$31 -> 0.01179904671 | AE34: 0.009960586637
A35: 28 | B35: 2013-03-01 | C35: -0.00168 | D35: -0.00563 | E35: 0.00126 | F35: 0.0347 | G35: 0.0078 | H35: 0.0254 | I35: 0.012372474 | K35: 1397.683429 | L35: 1397.683429 | M35: 0 | N35: 0.0024744948 | O35: 0.0098979792 | P35: 1307.925809 | Q35: -0.01350092768 | R35: 1628.808059 | S35: 0.02587340168 | U35: Average negative monthly ROR: | X35: =SUMIF(OFFSET(I8,0,0,NM,1),"<0")/$X$32 -> -0.00503946979 | Z35: Average negative monthly ROR: | AC35: =SUMIF(OFFSET(O8,0,0,NM,1),"<0")/$AC$32 -> -0.00503946979 | AE35: -0.002541066471
A36: 29 | B36: 2013-04-01 | C36: 0.00869 | D36: 0.01443 | E36: 0.00474 | F36: -0.0067 | G36: 0.0346 | H36: -0.0049 | I36: 0.0101740344 | K36: 1411.903509 | L36: 1411.903509 | M36: 0 | N36: 0.00203480688 | O36: 0.00813922752 | P36: 1318.571315 | Q36: -0.01825750818 | R36: 1599.070083 | S36: 0.02843154258 | U36: Avg. pos. / avg. neg. mon. ROR: | X36: =-$X$34/$X$35 -> 2.858679977 | Z36: Avg. pos. / avg. neg. mon. ROR: | AC36: =-$AC$34/$AC$35 -> 2.341327005 | AE36: 3.919844975
A37: 30 | B37: 2013-05-13 | C37: -0.00582 | D37: -0.01347 | E37: -0.00842 | F37: -0.00891 | G37: -0.0002 | H37: -0.0197 | I37: -0.0113062608 | J37: -0.01213959413 | K37: 1395.940159 | L37: 1411.903509 | M37: -0.0113062608 | N37: 0 | O37: -0.0113062608 | P37: 1303.663204 | Q37: -0.02147443664 | R37: 1564.730954 | S37: 0.01016817584 | U37: Sum positive RORs: | X37: =SUMIF(OFFSET(I8,0,0,NM,1),">0") -> 0.4321869415 | Z37: Sum positive RORs: | AC37: =SUMIF(OFFSET(O8,0,0,NM,1),">0") -> 0.3539714013 | AE37: 0.3486205323
A38: 31 | B38: 2013-06-24 | C38: 0.00634 | D38: 0.00187 | E38: -0.00587 | F38: -0.00047 | G38: -0.0089 | H38: -0.0114 | I38: -0.0036867372 | J38: -0.004520070533 | K38: 1390.793695 | L38: 1411.903509 | M38: -0.01495131479 | N38: 0 | O38: -0.0036867372 | P38: 1298.85694 | Q38: -0.0567910979 | R38: 1475.868165 | S38: 0.0531043607 | U38: Sum negative RORs: | X38: =SUMIF(OFFSET(I8,0,0,NM,1),"<0") -> -0.04031575832 | Z38: Sum negative RORs: | AC38: =SUMIF(OFFSET(O8,0,0,NM,1),"<0") -> -0.04031575832 | AE38: -0.007623199413
A39: 32 | B39: 2013-07-13 | C39: 0.00832 | D39: 0.01344 | E39: 0.00865 | F39: 0.02282 | G39: 0.0117 | H39: 0.0682 | I39: 0.0266313252 | K39: 1427.832374 | L39: 1427.832374 | M39: 0 | N39: 0.002256367417 | O39: 0.02437495778 | P39: 1330.516523 | Q39: -0.07176201298 | R39: 1369.956894 | S39: 0.09839333818 | U39: Profit-to-loss ratio: | X39: =-SUMIF(OFFSET(I8,0,0,NM,1),">0")/SUMIF(OFFSET(I8,0,0,NM,1),"<0") -> 10.72004991 | Z39: Profit-to-loss ratio: | AC39: =-SUMIF(OFFSET(O8,0,0,NM,1),">0")/SUMIF(OFFSET(O8,0,0,NM,1),"<0") -> 8.779976268 | AE39: 45.73152471
A40: 33 | B40: 2013-08-01 | C40: 0.01202 | D40: 0.01095 | E40: -0.00325 | F40: -0.01775 | G40: -0.0025 | H40: -0.0269 | I40: -0.0054870972 | J40: -0.006320430533 | K40: 1419.997719 | L40: 1427.832374 | M40: -0.0054870972 | N40: 0 | O40: -0.0054870972 | P40: 1323.21585 | Q40: 0.1077230383 | R40: 1517.532813 | S40: -0.1132101355 | U40: Tracking error, rel. to SPY: | X40: =STDEV(OFFSET(S8,0,0,NM,1))*SQRT(12) -> 0.2006377394 | Z40: Tracking error, rel. to SPY: | AC40: N/A | AE40: 0.1899890544
A41: 34 | B41: 2013-09-08 | C41: -0.0005 | D41: 0.00719 | E41: 0.03506 | F41: 0.02109 | G41: 0.0023 | H41: 0.0185 | I41: 0.0167313456 | K41: 1443.756191 | L41: 1443.756191 | M41: 0 | N41: 0.002230488376 | O41: 0.01450085722 | P41: 1342.403614 | Q41: -0.005058645177 | R41: 1509.856153 | S41: 0.02178999078 | U41: Information Ratio, rel. to SPY: | X41: =12*AVERAGE(OFFSET(S8,0,0,NM,1))/$X$40 -> -0.3065665762 | Z41: Information Ratio, rel. to SPY: | AC41: N/A | AE41: -0.4083090548
A42: 35 | B42: 2013-10-01 | C42: 0.01276 | D42: 0.01732 | E42: 0.00492 | F42: 0.00603 | G42: 0.0041 | H42: 0.0245 | I42: 0.0139287852 | K42: 1463.865961 | L42: 1463.865961 | M42: 0 | N42: 0.00278575704 | O42: 0.01114302816 | P42: 1357.362055 | Q42: 0.008532751652 | R42: 1522.739381 | S42: 0.005396033548 | U42: R-Square, rel to SPY: | X42: =RSQ(OFFSET(I8,0,0,NM,1),OFFSET(Q8,0,0,NM,1)) -> 0.2207351124 | Z42: R-Square, rel to SPY: | AC42: =RSQ(OFFSET(O8,0,0,NM,1),OFFSET(Q8,0,0,NM,1)) -> 0.2223322107 | AE42: 0.1537158297
A43: 36 | B43: 2013-11-01 | C43: -0.00603 | D43: -0.00909 | E43: -0.00818 | F43: 0.0128 | G43: 0.0015 | H43: 0.01656 | I43: 0.0015123024 | K43: 1466.079769 | L43: 1466.079769 | M43: 0 | N43: 0.00030246048 | O43: 0.00120984192 | P43: 1359.004249 | Q43: 0.04357506361 | R43: 1589.092846 | S43: -0.04206276121 | U43: SPY ROR, annualized: | X43: =POWER(INDIRECT(ADDRESS(NM+7,18))/1000,12/NM)-1 -> 0.1836128721 | Z43: SPY ROR, annualized: | AC43: =$X$43 -> 0.1836128721 | AE43: 0.1836128721
A44: 37 | B44: 2013-12-01 | C44: -0.00765 | D44: -0.00452 | E44: -0.01119 | F44: 0.0218 | G44: 0.0043 | H44: 0.01096 | I44: 0.002740548 | K44: 1470.097631 | L44: 1470.097631 | M44: 0 | N44: 0.0005481096 | O44: 0.0021924384 | P44: 1361.983782 | Q44: 0.04059737885 | R44: 1653.605851 | S44: -0.03785683085 | U44: Active Premium, rel. SPY: | X44: =$X$17-$X$43 -> -0.05348560861 | Z44: Active Premium, rel. SPY: | AC44: =$AC$17-$AC$43 -> -0.0805631648 | AE44: -0.07080937166
A45: 38 | B45: 2014-01-01 | C45: 0.0172 | D45: 0.01888 | E45: 0.00538 | F45: -0.00041 | G45: -0.0053 | H45: -0.02549 | I45: 0.0020524104 | K45: 1473.114875 | L45: 1473.114875 | M45: 0 | N45: 0.00041048208 | O45: 0.00164192832 | P45: 1364.220061 | Q45: 0.03133237655 | R45: 1705.417252 | S45: -0.02927996615 | U45: Treynor Ratio: | X45: =($X$17-$X$15)/$X$27 -> -1.122768322 | Z45: Treynor Ratio: | AC45: =($AC$17-$X$15)/$AC$27 -> -1.025027506 | AE45: -1.804656127
J46: -0.0008333333333 | U46: Jensen Alpha, annualized: | X46: =$X$17-($X$15+$X$27*($X$43-$X$15)) -> 0.1387024573 | Z46: Jensen Alpha, annualized: | AC46: =$AC$17-($X$15+$AC$27*($AC$43-$X$15)) -> 0.108809896 | AE46: 0.1126934793
U47: Worst drawdown: | X47: =MIN(OFFSET(M8,0,0,NM,1)) -> -0.01495131479 | Z47: Worst drawdown: | AC47: =$X$47 -> -0.01495131479 | AE47: -0.00730576579
W106: FXQ9 | X106: FXIA | Y106: FXBQ | Z106: V1 | AA106: V2 | AB106: V4
U107: Mean annual returns: | W107: =12*AVERAGE(OFFSET(C8,0,0,NM,1)) -> 0.05190843386 | X107: 0.05615198179 | Y107: 0.04924509693 | Z107: 0.1674 | AA107: 0.1042736842 | AB107: 0.1896410526
U108: Variance/covariance: | W108: =12*VAR(OFFSET(C8,0,0,NM,1)) -> 0.001017663801 | X108: =12*COVAR(OFFSET(C8,0,0,NM,1),OFFSET(D8,0,0,NM,1)) -> 0.001402762449 | Y108: =12*COVAR(OFFSET(C8,0,0,NM,1),OFFSET(E8,0,0,NM,1)) -> 0.000611780915 | Z108: =12*COVAR(OFFSET(C8,0,0,NM,1),OFFSET(F8,0,0,NM,1)) -> -0.0006990161708 | AA108: =12*COVAR(OFFSET(C8,0,0,NM,1),OFFSET(G8,0,0,NM,1)) -> -0.0003366212745 | AB108: =12*COVAR(OFFSET(C8,0,0,NM,1),OFFSET(H8,0,0,NM,1)) -> -0.0006715120919
X109: =12*VAR(OFFSET(D8,0,0,NM,1)) -> 0.002381552097 | Y109: =12*COVAR(OFFSET(D8,0,0,NM,1),OFFSET(E8,0,0,NM,1)) -> 0.0009405079933 | Z109: =12*COVAR(OFFSET(D8,0,0,NM,1),OFFSET(F8,0,0,NM,1)) -> -0.001175636758 | AA109: =12*COVAR(OFFSET(D8,0,0,NM,1),OFFSET(G8,0,0,NM,1)) -> -0.0004624902524 | AB109: =12*COVAR(OFFSET(D8,0,0,NM,1),OFFSET(H8,0,0,NM,1)) -> -0.0007037372954
Y110: =12*VAR(OFFSET(E8,0,0,NM,1)) -> 0.001388605624 | Z110: =12*COVAR(OFFSET(E8,0,0,NM,1),OFFSET(F8,0,0,NM,1)) -> 0.0001315587617 | AA110: =12*COVAR(OFFSET(E8,0,0,NM,1),OFFSET(G8,0,0,NM,1)) -> -1.265901604e-05 | AB110: =12*COVAR(OFFSET(E8,0,0,NM,1),OFFSET(H8,0,0,NM,1)) -> 0.0001965939983
Z111: =12*VAR(OFFSET(F8,0,0,NM,1)) -> 0.008218253838 | AA111: =12*COVAR(OFFSET(F8,0,0,NM,1),OFFSET(G8,0,0,NM,1)) -> 0.0003779358947 | AB111: =12*COVAR(OFFSET(F8,0,0,NM,1),OFFSET(H8,0,0,NM,1)) -> 0.007301484442
AA112: =12*VAR(OFFSET(G8,0,0,NM,1)) -> 0.001769148905 | AB112: =12*COVAR(OFFSET(G8,0,0,NM,1),OFFSET(H8,0,0,NM,1)) -> -4.514094183e-06
AB113: =12*VAR(OFFSET(H8,0,0,NM,1)) -> 0.01227293736

Sheet Sharpe Ratio (monthly)
B1: Modern Portfolio Theory (MPT) | AB1: Ngran = | AC1: 15 | AE1: Ncomb= | AF1: =SUM(AI4:AI25003) -> 15504.00018 | AM1: Max. Sharpe
B2: Sharpe Ratio Optimization | E2: Mean returns and variances are automatically imported from the MultiStrategy-Monthly worksheet | R2: S^-1 - Inverse of the variance/covariance matrix | Y2: Frontier | AM2: =MAX(AM4:AM15507) -> 3.679406489 | AN2: < Change Ncomb if Ngran is changed
R3: =MINVERSE(E5:J10) -> 5785.466191 | S3: -3226.462539 | T3: -378.1565677 | U3: -211.2093445 | V3: 300.4432738 | W3: 263.3656209 | Y3: mu | Z3: SD | AB3: Comb. | AC3: p1 | AD3: p2 | AE3: p3 | AF3: p4 | AG3: p5 | AH3: p6 | AI3: Sum | AK3: mu | AL3: SD | AM3: Sharpe ratio
B4: Mean Monthly Returns | E4: Variance - Covariance Matrix | L4: Standard Deviations | O4: Correlations | R4: -3226.462539 | S4: 2487.734351 | T4: -261.9288836 | U4: 239.2730507 | V4: -16.99422759 | W4: -172.0475406 | Y4: 0 | Z4: =SQRT(($R$12*Y4*Y4-2*$S$12*Y4+$T$12)/$U$12) -> 0.04852125819 | AB4: 1 | AC4: =Pcomb6($AC$1) -> 0 | AD4: 0 | AE4: 0 | AF4: 0 | AG4: 0 | AH4: 1 | AI4: =SUM(AC4:AH4) -> 1 | AK4: =AC4*$C$5+AD4*$C$6+AE4*$C$7+AF4*$C$8+AG4*$C$9+AH4*$C$10 -> 0.1896410526 | AL4: =SDP(6,$E$5:$J$10,AC4:AH4) -> 0.1107832864 | AM4: =(AK4-RFR)/AL4 -> 1.621553742 | AN4: =IF(AM4>=0.9999*$AM$2,"Max. Sharpe","") -> 
B5: 1.) FXQ | C5: ='MultiStrategy-Monthly'!W107 -> 0.05190843386 | E5: ='MultiStrategy-Monthly'!W108 -> 0.001017663801 | F5: ='MultiStrategy-Monthly'!X108 -> 0.001402762449 | G5: ='MultiStrategy-Monthly'!Y108 -> 0.000611780915 | H5: ='MultiStrategy-Monthly'!Z108 -> -0.0006990161708 | I5: ='MultiStrategy-Monthly'!AA108 -> -0.0003366212745 | J5: ='MultiStrategy-Monthly'!AB108 -> -0.0006715120919 | L5: SD(R1) | M5: =SQRT(E5) -> 0.03190084326 | O5: Corr(1,2) | P5: =F5/(M5*M6) -> 0.9010562954 | R5: -378.1565677 | S5: -261.9288836 | T5: 1071.347336 | U5: -72.93135052 | V5: -117.2046753 | W5: -9.525693536 | Y5: 0.01 | Z5: =SQRT(($R$12*Y5*Y5-2*$S$12*Y5+$T$12)/$U$12) -> 0.04300041867 | AB5: 2 | AC5: 0 | AD5: 0 | AE5: 0 | AF5: 0 | AG5: 0.06666667014 | AH5: 0.9333333373 | AI5: =SUM(AC5:AH5) -> 1.000000007 | AK5: =AC5*$C$5+AD5*$C$6+AE5*$C$7+AF5*$C$8+AG5*$C$9+AH5*$C$10 -> 0.1839498959 | AL5: =SDP(6,$E$5:$J$10,AC5:AH5) -> 0.1034330353 | AM5: 1.681763426 | AN5: =IF(AM5>=0.9999*$AM$2,"Max. Sharpe","") -> 
B6: 2.) FXIA | C6: ='MultiStrategy-Monthly'!X107 -> 0.05615198179 | E6: =F5 -> 0.001402762449 | F6: ='MultiStrategy-Monthly'!X109 -> 0.002381552097 | G6: ='MultiStrategy-Monthly'!Y109 -> 0.0009405079933 | H6: ='MultiStrategy-Monthly'!Z109 -> -0.001175636758 | I6: ='MultiStrategy-Monthly'!AA109 -> -0.0004624902524 | J6: ='MultiStrategy-Monthly'!AB109 -> -0.0007037372954 | L6: SD(R2) | M6: =SQRT(F6) -> 0.04880114852 | O6: Corr(1,3) | P6: =G5/(M5*M7) -> 0.5146409042 | R6: -211.2093445 | S6: 239.2730507 | T6: -72.93135052 | U6: 292.8415401 | V6: -41.15320166 | W6: -170.9020465 | Y6: 0.02 | Z6: 0.03764843519 | AB6: 3 | AC6: 0 | AD6: 0 | AE6: 0 | AF6: 0 | AG6: 0.1333333403 | AH6: 0.8666666746 | AI6: 1.000000015 | AK6: 0.1782587391 | AL6: =SDP(6,$E$5:$J$10,AC6:AH6) -> 0.09617041051 | AM6: 1.749589486
B7: 3.) FXBQ | C7: ='MultiStrategy-Monthly'!Y107 -> 0.04924509693 | E7: =G5 -> 0.000611780915 | F7: =G6 -> 0.0009405079933 | G7: ='MultiStrategy-Monthly'!Y110 -> 0.001388605624 | H7: ='MultiStrategy-Monthly'!Z110 -> 0.0001315587617 | I7: ='MultiStrategy-Monthly'!AA110 -> -1.265901604e-05 | J7: ='MultiStrategy-Monthly'!AB110 -> 0.0001965939983 | L7: SD(R3) | M7: =SQRT(G7) -> 0.03726399904 | O7: Corr(1,4) | P7: =H5/(M5*M8) -> -0.2417103704 | R7: 300.4432738 | S7: -16.99422759 | T7: -117.2046753 | U7: -41.15320166 | V7: 626.0272083 | W7: 42.05504743 | Y7: 0.03 | Z7: 0.0325487096 | AB7: 4 | AC7: 0 | AD7: 0 | AE7: 0 | AF7: 0 | AG7: 0.2000000179 | AH7: 0.7999999523 | AI7: 0.9999999702 | AK7: 0.1725675718 | AL7: 0.08901685476 | AM7: 1.826256075
B8: 4.) V1 | C8: ='MultiStrategy-Monthly'!Z107 -> 0.1674 | E8: =H5 -> -0.0006990161708 | F8: =H6 -> -0.001175636758 | G8: =H7 -> 0.0001315587617 | H8: ='MultiStrategy-Monthly'!Z111 -> 0.008218253838 | I8: ='MultiStrategy-Monthly'!AA111 -> 0.0003779358947 | J8: ='MultiStrategy-Monthly'!AB111 -> 0.007301484442 | L8: SD(R4) | M8: =SQRT(H8) -> 0.09065458531 | O8: Corr(1,5) | P8: =I5/(M5*M9) -> -0.2508748945 | R8: 263.3656209 | S8: -172.0475406 | T8: -9.525693536 | U8: -170.9020465 | V8: 42.05504743 | W8: 187.8668512 | Y8: 0.04 | Z8: 0.02784021333 | AB8: 5 | AC8: 0 | AD8: 0 | AE8: 0 | AF8: 0 | AG8: 0.2666666806 | AH8: 0.7333333492 | AI8: 1.00000003 | AK8: 0.1668764255 | AL8: 0.08200094104 | AM8: 1.913105186
B9: 5.) V2 | C9: ='MultiStrategy-Monthly'!AA107 -> 0.1042736842 | E9: =I5 -> -0.0003366212745 | F9: =I6 -> -0.0004624902524 | G9: =I7 -> -1.265901604e-05 | H9: =I8 -> 0.0003779358947 | I9: ='MultiStrategy-Monthly'!AA112 -> 0.001769148905 | J9: ='MultiStrategy-Monthly'!AB112 -> -4.514094183e-06 | L9: SD(R5) | M9: =SQRT(I9) -> 0.04206125182 | O9: Corr(1,6) | P9: =J5/(M5*M10) -> -0.1900104189 | Y9: 0.05 | Z9: 0.02375671732 | AB9: 6 | AC9: 0 | AD9: 0 | AE9: 0 | AF9: 0 | AG9: 0.3333333433 | AH9: 0.6666666269 | AI9: 0.9999999702 | AK9: 0.1611852567 | AL9: 0.07516118884 | AM9: 2.01148038
B10: 6.) V4 | C10: ='MultiStrategy-Monthly'!AB107 -> 0.1896410526 | E10: =J5 -> -0.0006715120919 | F10: =J6 -> -0.0007037372954 | G10: =J7 -> 0.0001965939983 | H10: =J8 -> 0.007301484442 | I10: =J9 -> -4.514094183e-06 | J10: ='MultiStrategy-Monthly'!AB113 -> 0.01227293736 | L10: SD(R6) | M10: =SQRT(J10) -> 0.1107832901 | O10: Corr(2,3) | P10: =G6/(M6*M7) -> 0.5171815077 | R10: Efficient frontier parabola coefficients | Y10: 0.06 | Z10: 0.02067198383 | AB10: 7 | AC10: 0 | AD10: 0 | AE10: 0 | AF10: 0 | AG10: 0.4000000358 | AH10: 0.5999999642 | AI10: 1 | AK10: 0.1554941022 | AL10: 0.06855037808 | AM10: 2.122440551
B11: Risk-Free Rate | C11: 0.01 | O11: Corr(2,4) | P11: =H6/(M6*M8) -> -0.2657378015 | R11: A | S11: B | T11: C | U11: Delta | Y11: 0.07 | Z11: 0.0190768281 | AB11: 8 | AC11: 0 | AD11: 0 | AE11: 0 | AF11: 0 | AG11: 0.4666666985 | AH11: 0.5333333015 | AI11: 1 | AK11: 0.1498029447 | AL11: 0.06224148721 | AM11: 2.246137599
O12: Corr(2,5) | P12: =I6/(M6*M9) -> -0.2253151254 | R12: =FrontierCoef(6,R3:W8,C5:C10) -> 2784.525391 | S12: 204.967804 | T12: 17.80332375 | U12: 7562.005371 | Y12: 0.08 | Z12: 0.01934334468 | AB12: 9 | AC12: 0 | AD12: 0 | AE12: 0 | AF12: 0 | AG12: 0.5333333611 | AH12: 0.4666666389 | AI12: 1 | AK12: 0.1441117871 | AL12: 0.05633604899 | AM12: 2.380567851
L13: Tangent Portfolio | O13: Corr(2,6) | P13: =J6/(M6*M10) -> -0.1301686095 | Y13: 0.09 | Z13: 0.02140209695 | AB13: 10 | AC13: 0 | AD13: 0 | AE13: 0 | AF13: 0 | AG13: 0.6000000238 | AH13: 0.3999999762 | AI13: 1 | AK13: 0.1384206295 | AL13: 0.05097446963 | AM13: 2.519312716
L14: p1 | M14: 0.4666666985 | O14: Corr(3,4) | P14: =H7/(M7*M8) -> 0.03894399863 | Y14: 0.1 | Z14: 0.0248108783 | AB14: 11 | AC14: 0 | AD14: 0 | AE14: 0 | AF14: 0 | AG14: 0.6666666865 | AH14: 0.3333333135 | AI14: 1 | AK14: 0.132729472 | AL14: 0.04634588957 | AM14: 2.64811989
L15: p2 | M15: 0 | O15: Corr(3,5) | P15: =I7/(M7*M9) -> -0.008076594823 | Y15: 0.11 | Z15: 0.02909905098 | AB15: 12 | AC15: 0 | AD15: 0 | AE15: 0 | AF15: 0 | AG15: 0.7333333492 | AH15: 0.2666666508 | AI15: 1 | AK15: 0.1270383144 | AL15: 0.04268940911 | AM15: 2.741624138
L16: p3 | M16: 0 | O16: Corr(3,6) | P16: =J7/(M7*M10) -> 0.04762188002 | Y16: 0.12 | Z16: 0.03393486425 | AB16: 13 | AC16: 0 | AD16: 0 | AE16: 0 | AF16: 0 | AG16: 0.8000000715 | AH16: 0.1999999285 | AI16: 1 | AK16: 0.1213471518 | AL16: 0.04027068615 | AM16: 2.764967832
L17: p4 | M17: 0.06666667014 | O17: Corr(4,5) | P17: =I8/(M8*M9) -> 0.09911654882 | Y17: 0.13 | Z17: 0.03911573101 | AB17: 14 | AC17: 0 | AD17: 0 | AE17: 0 | AF17: 0 | AG17: 0.8666667342 | AH17: 0.1333332658 | AI17: 1 | AK17: 0.1156559942 | AL17: 0.0393188186 | AM17: 2.687160957
L18: p5 | M18: 0.4000000358 | O18: Corr(4,6) | P18: =J8/(M8*M10) -> 0.7270212915 | Y18: 0.14 | Z18: 0.04452135411 | AB18: 15 | AC18: 0 | AD18: 0 | AE18: 0 | AF18: 0 | AG18: 0.9333333969 | AH18: 0.06666660309 | AI18: 1 | AK18: 0.1099648367 | AL18: 0.03993882611 | AM18: 2.502948795
L19: p6 | M19: 0.06666660309 | O19: Corr(5,6) | P19: =J9/(M9*M10) -> -0.0009687554601 | Y19: 0.15 | Z19: 0.05007900447 | AB19: 16 | AC19: 0 | AD19: 0 | AE19: 0 | AF19: 0 | AG19: 1 | AH19: 0 | AI19: 1 | AK19: 0.1042736842 | AL19: 0.04206125066 | AM19: 2.241342869
L20: Overlev. | M20: 1 | Y20: 0.16 | Z20: 0.05574322885 | AB20: 17 | AC20: 0 | AD20: 0 | AE20: 0 | AF20: 0.06666667014 | AG20: 0 | AH20: 0.9333333373 | AI20: 1.000000007 | AK20: 0.1881583171 | AL20: 0.1078714356 | AM20: 1.651580107
L21: E(Rp) | M21: =(1-M20)*RFR+(M14*C5+M15*C6+M16*C7+M17*C8+M18*C9+M19*C10)*M20 -> 0.08973614023 | Y21: 0.17 | Z21: 0.06148458014 | AB21: 18 | AC21: 0 | AD21: 0 | AE21: 0 | AF21: 0.06666667014 | AG21: 0.06666667014 | AH21: 0.8666666746 | AI21: 1.000000015 | AK21: 0.1824671603 | AL21: 0.1005449817 | AM21: 1.715323406
L22: Var(Rp) | M22: =(M14*M20)^2*E5+(M15*M20)^2*F6+(M16*M20)^2*G7+(M17*M20)^2*H8+(M18*M20)^2*I9+(M19*M20)^2*J10+2*(M14*M15*M20*M20)*F5+2*(M14*M16*M20*M20)*G5+2*(M14*M17*M20*M20)*H5+2*(M14*M18*M20*M20)*I5+2*(M14*M19*M20*M20)*J5+2*(M15*M16*M20*M20)*G6+2*(M15*M17*M20*M20)*H6+2*(M15*M18*M20*M20)*I6+2*(M15*M19*M20*M20)*J6+2*(M16*M17*M20*M20)*H7+2*(M16*M18*M20*M20)*I7+2*(M16*M19*M20*M20)*J7+2*(M17*M18*M20*M20)*I8+2*(M17*M19*M20*M20)*J8+2*(M18*M19*M20*M20)*J9 -> 0.0004696289405 | Y22: 0.18 | Z22: 0.06728331728 | AB22: 19 | AC22: 0 | AD22: 0 | AE22: 0 | AF22: 0.06666667014 | AG22: 0.1333333403 | AH22: 0.7999999523 | AI22: 0.9999999627 | AK22: 0.1767759923 | AL22: 0.09331257641 | AM22: 1.787283115
L23: SD(Rp) | M23: =SQRT(M22) -> 0.02167092385 | Y23: 0.19 | Z23: 0.07312578979 | AB23: 20 | AC23: 0 | AD23: 0 | AE23: 0 | AF23: 0.06666667014 | AG23: 0.2000000179 | AH23: 0.7333333492 | AI23: 1.000000037 | AK23: 0.1710848476 | AL23: 0.08619792759 | AM23: 1.868778659
L24: Sharpe Ratio | M24: =(M21-RFR)/M23 -> 3.6794066 | Y24: 0.2 | Z24: 0.07900229514 | AB24: 21 | AC24: 0 | AD24: 0 | AE24: 0 | AF24: 0.06666667014 | AG24: 0.2666666806 | AH24: 0.6666666269 | AI24: 0.9999999776 | AK24: 0.1653936787 | AL24: 0.07923271507 | AM24: 1.961231274
Y25: 0.21 | Z25: 0.08490576718 | AB25: 22 | AC25: 0 | AD25: 0 | AE25: 0 | AF25: 0.06666667014 | AG25: 0.3333333433 | AH25: 0.5999999642 | AI25: 0.9999999776 | AK25: 0.1597025212 | AL25: 0.0724600926 | AM25: 2.065999584
Y26: 0.22 | Z26: 0.09083094804 | AB26: 23 | AC26: 0 | AD26: 0 | AE26: 0 | AF26: 0.06666667014 | AG26: 0.4000000358 | AH26: 0.5333333015 | AI26: 1.000000007 | AK26: 0.1540113667 | AL26: 0.06593940407 | AM26: 2.183995575
L27: Selected Portfolio | O27: Minimum pi | P27: 0 | Y27: 0.23 | Z27: 0.09677385029 | AB27: 24 | AC27: 0 | AD27: 0 | AE27: 0 | AF27: 0.06666667014 | AG27: 0.4666666985 | AH27: 0.4666666389 | AI27: 1.000000007 | AK27: 0.1483202091 | AL27: 0.05975319445 | AM27: 2.314858819
L28: p1 | M28: 0.1667 | Y28: 0.24 | Z28: 0.1027313985 | AB28: 25 | AC28: 0 | AD28: 0 | AE28: 0 | AF28: 0.06666667014 | AG28: 0.5333333611 | AH28: 0.3999999762 | AI28: 1.000000007 | AK28: 0.1426290516 | AL28: 0.05401649699 | AM28: 2.455343441
L29: p2 | M29: 0.1667 | O29: Capital Market Line | Y29: 0.25 | Z29: 0.1087011846 | AB29: 26 | AC29: 0 | AD29: 0 | AE29: 0 | AF29: 0.06666667014 | AG29: 0.6000000238 | AH29: 0.3333333135 | AI29: 1.000000007 | AK29: 0.136937894 | AL29: 0.04888781533 | AM29: 2.596513941
H30: . | L30: p3 | M30: 0.1667 | O30: X | P30: Y | Y30: 0.26 | Z30: 0.1146812974 | AB30: 27 | AC30: 0 | AD30: 0 | AE30: 0 | AF30: 0.06666667014 | AG30: 0.6666666865 | AH30: 0.2666666508 | AI30: 1.000000007 | AK30: 0.1312467365 | AL30: 0.04457750544 | AM30: 2.719908512
L31: p4 | M31: 0.1667 | O31: 0 | P31: =C11 -> 0.01 | Y31: 0.27 | Z31: 0.1206702017 | AB31: 28 | AC31: 0 | AD31: 0 | AE31: 0 | AF31: 0.06666667014 | AG31: 0.7333333492 | AH31: 0.1999999285 | AI31: 0.9999999478 | AK31: 0.1255555676 | AL31: 0.04134232178 | AM31: 2.795091389
L32: p5 | M32: 0.1667 | O32: =M37 -> 0.04040457623 | P32: =M35 -> 0.1217032808 | Y32: 0.28 | Z32: 0.1266666505 | AB32: 29 | AC32: 0 | AD32: 0 | AE32: 0 | AF32: 0.06666667014 | AG32: 0.8000000715 | AH32: 0.1333332658 | AI32: 1.000000007 | AK32: 0.1198644163 | AL32: 0.03944769502 | AM32: 2.785065547
L33: p6 | M33: =1-SUM(M28:M32) -> 0.1665 | O33: =MAX(M5:M9) -> 0.09065458531 | P33: =O33*(P32-P31)/(O32-O31)+P31 -> 0.2606254377 | Y33: 0.29 | Z33: 0.1326696208 | AB33: 30 | AC33: 0 | AD33: 0 | AE33: 0 | AF33: 0.06666667014 | AG33: 0.8666667342 | AH33: 0.06666660309 | AI33: 1.000000007 | AK33: 0.1141732587 | AL33: 0.03908903152 | AM33: 2.66502532
L34: Overlev. | M34: 1.2 | Y34: 0.3 | Z34: 0.1386782657 | AB34: 31 | AC34: 0 | AD34: 0 | AE34: 0 | AF34: 0.06666667014 | AG34: 0.9333333969 | AH34: 0 | AI34: 1.000000067 | AK34: 0.1084821125 | AL34: 0.04030735791 | AM34: 2.443278786
L35: E(Rp) | M35: =(1-M34)*RFR+(M28*C5+M29*C6+M30*C7+M31*C8+M32*C9+M33*C10)*M34 -> 0.1217032808 | Y35: 0.31 | Z35: 0.1446918782 | AB35: 32 | AC35: 0 | AD35: 0 | AE35: 0 | AF35: 0.1333333403 | AG35: 0 | AH35: 0.8666666746 | AI35: 1.000000015 | AK35: 0.1866755816 | AL35: 0.1051279977 | AM35: 1.680575922
L36: Var(Rp) | M36: =(M28*M34)^2*E5+(M29*M34)^2*F6+(M30*M34)^2*G7+(M31*M34)^2*H8+(M32*M34)^2*I9+(M33*M34)^2*J10+2*(M28*M29*M34*M34)*F5+2*(M28*M30*M34*M34)*G5+2*(M28*M31*M34*M34)*H5+2*(M28*M32*M34*M34)*I5+2*(M28*M33*M34*M34)*J5+2*(M29*M30*M34*M34)*G6+2*(M29*M31*M34*M34)*H6+2*(M29*M32*M34*M34)*I6+2*(M29*M33*M34*M34)*J6+2*(M30*M31*M34*M34)*H7+2*(M30*M32*M34*M34)*I7+2*(M30*M33*M34*M34)*J7+2*(M31*M32*M34*M34)*I8+2*(M31*M33*M34*M34)*J8+2*(M32*M33*M34*M34)*J9 -> 0.001632529781 | Y36: 0.32 | Z36: 0.1507098637 | AB36: 33 | AC36: 0 | AD36: 0 | AE36: 0 | AF36: 0.1333333403 | AG36: 0.06666667014 | AH36: 0.7999999523 | AI36: 0.9999999627 | AK36: 0.1809844135 | AL36: 0.09783931077 | AM36: 1.747604436
L37: SD(Rp) | M37: =SQRT(M36) -> 0.04040457623 | Y37: 0.33 | Z37: 0.1567317184 | AB37: 34 | AC37: 0 | AD37: 0 | AE37: 0 | AF37: 0.1333333403 | AG37: 0.1333333403 | AH37: 0.7333333492 | AI37: 1.00000003 | AK37: 0.1752932681 | AL37: 0.09065356106 | AM37: 1.823351076
L38: Sharpe Ratio | M38: =(M35-C11)/M37 -> 2.764619537 | Y38: 0.34 | Z38: 0.162757013 | AB38: 35 | AC38: 0 | AD38: 0 | AE38: 0 | AF38: 0.1333333403 | AG38: 0.2000000179 | AH38: 0.6666666269 | AI38: 0.9999999851 | AK38: 0.1696021008 | AL38: 0.08359725773 | AM38: 1.909178663
Y39: 0.35 | Z39: 0.1687853789 | AB39: 36 | AC39: 0 | AD39: 0 | AE39: 0 | AF39: 0.1333333403 | AG39: 0.2666666806 | AH39: 0.5999999642 | AI39: 0.9999999851 | AK39: 0.1639109432 | AL39: 0.07670615613 | AM39: 2.006500533
Y40: 0.36 | Z40: 0.1748164986 | AB40: 37 | AC40: 0 | AD40: 0 | AE40: 0 | AF40: 0.1333333403 | AG40: 0.3333333433 | AH40: 0.5333333015 | AI40: 0.9999999851 | AK40: 0.1582197856 | AL40: 0.07002903521 | AM40: 2.116547589
Y41: 0.37 | Z41: 0.1808500964 | AB41: 38 | AC41: 0 | AD41: 0 | AE41: 0 | AF41: 0.1333333403 | AG41: 0.4000000358 | AH41: 0.4666666389 | AI41: 1.000000015 | AK41: 0.1525286312 | AL41: 0.06363329291 | AM41: 2.239843715
Y42: 0.38 | Z42: 0.1868859323 | AB42: 39 | AC42: 0 | AD42: 0 | AE42: 0 | AF42: 0.1333333403 | AG42: 0.4666666985 | AH42: 0.3999999762 | AI42: 1.000000015 | AK42: 0.1468374736 | AL42: 0.05761271715 | AM42: 2.375126194
Y43: 0.39 | Z43: 0.1929237964 | AB43: 40 | AC43: 0 | AD43: 0 | AE43: 0 | AF43: 0.1333333403 | AG43: 0.5333333611 | AH43: 0.3333333135 | AI43: 1.000000015 | AK43: 0.1411463161 | AL43: 0.05209753662 | AM43: 2.517322787
Y44: 0.4 | Z44: 0.1989635038 | AB44: 41 | AC44: 0 | AD44: 0 | AE44: 0 | AF44: 0.1333333403 | AG44: 0.6000000238 | AH44: 0.2666666508 | AI44: 1.000000015 | AK44: 0.1354551585 | AL44: 0.04726499692 | AM44: 2.654293171
Y45: 0.41 | Z45: 0.2050048918 | AB45: 42 | AC45: 0 | AD45: 0 | AE45: 0 | AF45: 0.1333333403 | AG45: 0.6666666865 | AH45: 0.1999999285 | AI45: 0.9999999553 | AK45: 0.1297639897 | AL45: 0.04334403202 | AM45: 2.763102187
Y46: 0.42 | Z46: 0.211047816 | AB46: 43 | AC46: 0 | AD46: 0 | AE46: 0 | AF46: 0.1333333403 | AG46: 0.7333333492 | AH46: 0.1333332658 | AI46: 0.9999999553 | AK46: 0.1240728321 | AL46: 0.04059962928 | AM46: 2.809701323
Y47: 0.43 | Z47: 0.2170921481 | AB47: 44 | AC47: 0 | AD47: 0 | AE47: 0 | AF47: 0.1333333403 | AG47: 0.8000000715 | AH47: 0.06666660309 | AI47: 1.000000015 | AK47: 0.1183816808 | AL47: 0.03927916661 | AM47: 2.759266302
Y48: 0.44 | Z48: 0.2231377738 | AB48: 45 | AC48: 0 | AD48: 0 | AE48: 0 | AF48: 0.1333333403 | AG48: 0.8666667342 | AH48: 0 | AI48: 1.000000075 | AK48: 0.1126905345 | AL48: 0.03952562436 | AM48: 2.598074949
Y49: 0.45 | Z49: 0.2291845905 | AB49: 46 | AC49: 0 | AD49: 0 | AE49: 0 | AF49: 0.2000000179 | AG49: 0 | AH49: 0.7999999523 | AI49: 0.9999999702 | AK49: 0.1851928361 | AL49: 0.1025664881 | AM49: 1.708090423
Y50: 0.46 | Z50: 0.2352325065 | AB50: 47 | AC50: 0 | AD50: 0 | AE50: 0 | AF50: 0.2000000179 | AG50: 0.06666667014 | AH50: 0.7333333492 | AI50: 1.000000037 | AK50: 0.1795016906 | AL50: 0.0953315869 | AM50: 1.778022333
Y51: 0.47 | Z51: 0.2412814392 | AB51: 48 | AC51: 0 | AD51: 0 | AE51: 0 | AF51: 0.2000000179 | AG51: 0.1333333403 | AH51: 0.6666666269 | AI51: 0.9999999851 | AK51: 0.1738105225 | AL51: 0.08821132034 | AM51: 1.857023814
Y52: 0.48 | Z52: 0.2473313139 | AB52: 49 | AC52: 0 | AD52: 0 | AE52: 0 | AF52: 0.2000000179 | AG52: 0.2000000179 | AH52: 0.5999999642 | AI52: 1 | AK52: 0.1681193665 | AL52: 0.08123583347 | AM52: 1.946423884
Y53: 0.49 | Z53: 0.2533820631 | AB53: 50 | AC53: 0 | AD53: 0 | AE53: 0 | AF53: 0.2000000179 | AG53: 0.2666666806 | AH53: 0.5333333015 | AI53: 1 | AK53: 0.1624282089 | AL53: 0.07444585115 | AM53: 2.047504416
Y54: 0.5 | Z54: 0.2594336257 | AB54: 51 | AC54: 0 | AD54: 0 | AE54: 0 | AF54: 0.2000000179 | AG54: 0.3333333433 | AH54: 0.4666666389 | AI54: 1 | AK54: 0.1567370514 | AL54: 0.06789702177 | AM54: 2.161170661
AB55: 52 | AC55: 0 | AD55: 0 | AE55: 0 | AF55: 0.2000000179 | AG55: 0.4000000358 | AH55: 0.3999999762 | AI55: 1.00000003 | AK55: 0.1510458969 | AL55: 0.06166625023 | AM55: 2.287246207
AB56: 53 | AC56: 0 | AD56: 0 | AE56: 0 | AF56: 0.2000000179 | AG56: 0.4666666985 | AH56: 0.3333333135 | AI56: 1.00000003 | AK56: 0.1453547394 | AL56: 0.05586005747 | AM56: 2.423104191
AB57: 54 | AC57: 0 | AD57: 0 | AE57: 0 | AF57: 0.2000000179 | AG57: 0.5333333611 | AH57: 0.2666666508 | AI57: 1.00000003 | AK57: 0.1396635818 | AL57: 0.05062473938 | AM57: 2.561269123
AB58: 55 | AC58: 0 | AD58: 0 | AE58: 0 | AF58: 0.2000000179 | AG58: 0.6000000238 | AH58: 0.1999999285 | AI58: 0.9999999702 | AK58: 0.133972413 | AL58: 0.04615496844 | AM58: 2.686003634
AB59: 56 | AC59: 0 | AD59: 0 | AE59: 0 | AF59: 0.2000000179 | AG59: 0.6666666865 | AH59: 0.1333332658 | AI59: 0.9999999702 | AK59: 0.1282812554 | AL59: 0.04269187897 | AM59: 2.770579751
AB60: 57 | AC60: 0 | AD60: 0 | AE60: 0 | AF60: 0.2000000179 | AG60: 0.7333333492 | AH60: 0.06666660309 | AI60: 0.9999999702 | AK60: 0.1225900979 | AL60: 0.04049458355 | AM60: 2.780374262
AB61: 58 | AC61: 0 | AD61: 0 | AE61: 0 | AF61: 0.2000000179 | AG61: 0.8000000715 | AH61: 0 | AI61: 1.000000089 | AK61: 0.1168989578 | AL61: 0.03977342322 | AM61: 2.687698195
AB62: 59 | AC62: 0 | AD62: 0 | AE62: 0 | AF62: 0.2666666806 | AG62: 0 | AH62: 0.7333333492 | AI62: 1.00000003 | AK62: 0.1837101106 | AL62: 0.1002008691 | AM62: 1.733618801
AB63: 60 | AC63: 0 | AD63: 0 | AE63: 0 | AF63: 0.2666666806 | AG63: 0.06666667014 | AH63: 0.6666666269 | AI63: 0.9999999776 | AK63: 0.1780189425 | AL63: 0.09303779155 | AM63: 1.80592144
AB64: 61 | AC64: 0 | AD64: 0 | AE64: 0 | AF64: 0.2666666806 | AG64: 0.1333333403 | AH64: 0.5999999642 | AI64: 0.9999999851 | AK64: 0.1723277857 | AL64: 0.08600433916 | AM64: 1.887437161
AB65: 62 | AC65: 0 | AD65: 0 | AE65: 0 | AF65: 0.2666666806 | AG65: 0.2000000179 | AH65: 0.5333333015 | AI65: 1 | AK65: 0.1666366297 | AL65: 0.07913507521 | AM65: 1.979357817
AB66: 63 | AC66: 0 | AD66: 0 | AE66: 0 | AF66: 0.2666666806 | AG66: 0.2666666806 | AH66: 0.4666666389 | AI66: 1 | AK66: 0.1609454722 | AL66: 0.07247671485 | AM66: 2.082675415
AB67: 64 | AC67: 0 | AD67: 0 | AE67: 0 | AF67: 0.2666666806 | AG67: 0.3333333433 | AH67: 0.3999999762 | AI67: 1 | AK67: 0.1552543146 | AL67: 0.06609301269 | AM67: 2.197725731
AB68: 65 | AC68: 0 | AD68: 0 | AE68: 0 | AF68: 0.2666666806 | AG68: 0.4000000358 | AH68: 0.3333333135 | AI68: 1.00000003 | AK68: 0.1495631602 | AL68: 0.06007159501 | AM68: =(AK68-RFR)/AL68 -> 2.323280415
AB69: 66 | AC69: 0 | AD69: 0 | AE69: 0 | AF69: 0.2666666806 | AG69: 0.4666666985 | AH69: 0.2666666508 | AI69: =SUM(AC69:AH69) -> 1.00000003 | AK69: =AC69*$C$5+AD69*$C$6+AE69*$C$7+AF69*$C$8+AG69*$C$9+AH69*$C$10 -> 0.1438720026 | AL69: 0.05453262106 | AM69: 2.454897638 | AN69: =IF(AM69>=0.9999*$AM$2,"Max. Sharpe","") -> 
AB70: 67 | AC70: 0 | AD70: 0 | AE70: 0 | AF70: 0.2666666806 | AG70: 0.5333333611 | AH70: 0.1999999285 | AI70: 0.9999999702 | AK70: 0.1381808338 | AL70: =SDP(6,$E$5:$J$10,AC70:AH70) -> 0.04963783175 | AM70: 2.582321372
AB71: 68 | AC71: 0 | AD71: 0 | AE71: 0 | AF71: 0.2666666806 | AG71: 0.6000000238 | AH71: 0.1333332658 | AI71: 0.9999999702 | AK71: 0.1324896762 | AL71: 0.04559519514 | AM71: 2.686460181
AB72: 69 | AC72: 0 | AD72: 0 | AE72: 0 | AF72: 0.2666666806 | AG72: 0.6666666865 | AH72: 0.06666660309 | AI72: 0.9999999702 | AK72: 0.1267985187 | AL72: 0.04264772311 | AM72: 2.738681227
AB73: 70 | AC73: 0 | AD73: 0 | AE73: 0 | AF73: 0.2666666806 | AG73: 0.7333333492 | AH73: 0 | AI73: 1.00000003 | AK73: 0.1211073724 | AL73: 0.04103209823 | AM73: 2.707816007
AB74: 71 | AC74: 0 | AD74: 0 | AE74: 0 | AF74: 0.3333333433 | AG74: 0 | AH74: 0.6666666269 | AI74: 0.9999999702 | AK74: 0.1822273625 | AL74: 0.09804530442 | AM74: 1.756610004
AB75: 72 | AC75: 0 | AD75: 0 | AE75: 0 | AF75: 0.3333333433 | AG75: 0.06666667014 | AH75: 0.5999999642 | AI75: 0.9999999776 | AK75: 0.1765362058 | AL75: 0.09097410738 | AM75: 1.830589061
AB76: 73 | AC76: 0 | AD76: 0 | AE76: 0 | AF76: 0.3333333433 | AG76: 0.1333333403 | AH76: 0.5333333015 | AI76: 0.9999999851 | AK76: 0.170845049 | AL76: 0.08405113965 | AM76: 1.913656967
AB77: 74 | AC77: 0 | AD77: 0 | AE77: 0 | AF77: 0.3333333433 | AG77: 0.2000000179 | AH77: 0.4666666389 | AI77: 1 | AK77: 0.165153893 | AL77: 0.07731623203 | AM77: 2.006744107
AB78: 75 | AC78: 0 | AD78: 0 | AE78: 0 | AF78: 0.3333333433 | AG78: 0.2666666806 | AH78: 0.3999999762 | AI78: 1 | AK78: 0.1594627354 | AL78: 0.07082304358 | AM78: 2.110368714
AB79: 76 | AC79: 0 | AD79: 0 | AE79: 0 | AF79: 0.3333333433 | AG79: 0.3333333433 | AH79: 0.3333333135 | AI79: 1 | AK79: 0.1537715779 | AL79: 0.06464445591 | AM79: 2.224035702
AB80: 77 | AC80: 0 | AD80: 0 | AE80: 0 | AF80: 0.3333333433 | AG80: 0.4000000358 | AH80: 0.2666666508 | AI80: 1.00000003 | AK80: 0.1480804234 | AL80: 0.05887959525 | AM80: 2.345132008
AB81: 78 | AC81: 0 | AD81: 0 | AE81: 0 | AF81: 0.3333333433 | AG81: 0.4666666985 | AH81: 0.1999999285 | AI81: 0.9999999702 | AK81: 0.1423892546 | AL81: 0.05366196483 | AM81: 2.467096667
AB82: 79 | AC82: 0 | AD82: 0 | AE82: 0 | AF82: 0.3333333433 | AG82: 0.5333333611 | AH82: 0.1333332658 | AI82: 0.9999999702 | AK82: 0.136698097 | AL82: 0.04916609451 | AM82: 2.576940436
AB83: 80 | AC83: 0 | AD83: 0 | AE83: 0 | AF83: 0.3333333433 | AG83: 0.6000000238 | AH83: 0.06666660309 | AI83: 0.9999999702 | AK83: 0.1310069395 | AL83: 0.04560595006 | AM83: 2.653314739
AB84: 81 | AC84: 0 | AD84: 0 | AE84: 0 | AF84: 0.3333333433 | AG84: 0.6666666865 | AH84: 0 | AI84: 1.00000003 | AK84: 0.1253157932 | AL84: 0.04321341589 | AM84: 2.668518349
AB85: 82 | AC85: 0 | AD85: 0 | AE85: 0 | AF85: 0.4000000358 | AG85: 0 | AH85: 0.5999999642 | AI85: 1 | AK85: 0.1807446308 | AL85: 0.09611394256 | AM85: 1.776481395
AB86: 83 | AC86: 0 | AD86: 0 | AE86: 0 | AF86: 0.4000000358 | AG86: 0.06666667014 | AH86: 0.5333333015 | AI86: 1.000000007 | AK86: 0.175053474 | AL86: 0.0891565308 | AM86: 1.851277439
AB87: 84 | AC87: 0 | AD87: 0 | AE87: 0 | AF87: 0.4000000358 | AG87: 0.1333333403 | AH87: 0.4666666389 | AI87: 1.000000015 | AK87: 0.1693623172 | AL87: 0.08236980438 | AM87: 1.934717685
AB88: 85 | AC88: 0 | AD88: 0 | AE88: 0 | AF88: 0.4000000358 | AG88: 0.2000000179 | AH88: 0.3999999762 | AI88: 1.00000003 | AK88: 0.1636711612 | AL88: 0.07579959929 | AM88: 2.027334744
AB89: 86 | AC89: 0 | AD89: 0 | AE89: 0 | AF89: 0.4000000358 | AG89: 0.2666666806 | AH89: 0.3333333135 | AI89: 1.00000003 | AK89: 0.1579800037 | AL89: 0.06950736046 | AM89: 2.128983214
AB90: 87 | AC90: 0 | AD90: 0 | AE90: 0 | AF90: 0.4000000358 | AG90: 0.3333333433 | AH90: 0.2666666508 | AI90: 1.00000003 | AK90: 0.1522888461 | AL90: 0.06357567012 | AM90: 2.238102183
AB91: 88 | AC91: 0 | AD91: 0 | AE91: 0 | AF91: 0.4000000358 | AG91: 0.4000000358 | AH91: 0.1999999285 | AI91: 1 | AK91: 0.1465976804 | AL91: 0.05811502784 | AM91: 2.350470875
AB92: 89 | AC92: 0 | AD92: 0 | AE92: 0 | AF92: 0.4000000358 | AG92: 0.4666666985 | AH92: 0.1333332658 | AI92: 1 | AK92: 0.1409065228 | AL92: 0.05327050388 | AM92: 2.457392239
AB93: 90 | AC93: 0 | AD93: 0 | AE93: 0 | AF93: 0.4000000358 | AG93: 0.5333333611 | AH93: 0.06666660309 | AI93: 1 | AK93: 0.1352153653 | AL93: 0.04922434315 | AM93: 2.543769144
AB94: 91 | AC94: 0 | AD94: 0 | AE94: 0 | AF94: 0.4000000358 | AG94: 0.6000000238 | AH94: 0 | AI94: 1.00000006 | AK94: 0.129524219 | AL94: 0.04618683457 | AM94: 2.587841754
AB95: 92 | AC95: 0 | AD95: 0 | AE95: 0 | AF95: 0.4666666985 | AG95: 0 | AH95: 0.5333333015 | AI95: 1 | AK95: 0.179261894 | AL95: 0.09442053735 | AM95: 1.792638538
AB96: 93 | AC96: 0 | AD96: 0 | AE96: 0 | AF96: 0.4666666985 | AG96: 0.06666667014 | AH96: 0.4666666389 | AI96: 1.000000007 | AK96: 0.1735707373 | AL96: 0.08760038018 | AM96: 1.867237755
AB97: 94 | AC97: 0 | AD97: 0 | AE97: 0 | AF97: 0.4666666985 | AG97: 0.1333333403 | AH97: 0.3999999762 | AI97: 1.000000015 | AK97: 0.1678795805 | AL97: 0.08097723871 | AM97: 1.94967849
AB98: 95 | AC98: 0 | AD98: 0 | AE98: 0 | AF98: 0.4666666985 | AG98: 0.2000000179 | AH98: 0.3333333135 | AI98: 1.00000003 | AK98: 0.1621884245 | AL98: 0.07460360974 | AM98: 2.0399606
AB99: 96 | AC99: 0 | AD99: 0 | AE99: 0 | AF99: 0.4666666985 | AG99: 0.2666666806 | AH99: 0.2666666508 | AI99: 1.00000003 | AK99: 0.1564972669 | AL99: 0.06854911894 | AM99: 2.137113783
AB100: 97 | AC100: 0 | AD100: 0 | AE100: 0 | AF100: 0.4666666985 | AG100: 0.3333333433 | AH100: 0.1999999285 | AI100: 0.9999999702 | AK100: 0.1508060981 | AL100: 0.06290599704 | AM100: 2.238357306
AB101: 98 | AC101: 0 | AD101: 0 | AE101: 0 | AF101: 0.4666666985 | AG101: 0.4000000358 | AH101: 0.1333332658 | AI101: 1 | AK101: 0.1451149436 | AL101: 0.0577948615 | AM101: 2.337836619
AB102: 99 | AC102: 0 | AD102: 0 | AE102: 0 | AF102: 0.4666666985 | AG102: 0.4666666985 | AH102: 0.06666660309 | AI102: 1 | AK102: 0.1394237861 | AL102: 0.05336878076 | AM102: 2.425084182
AB103: 100 | AC103: 0 | AD103: 0 | AE103: 0 | AF103: 0.4666666985 | AG103: 0.5333333611 | AH103: 0 | AI103: 1.00000006 | AK103: 0.1337326398 | AL103: 0.04981070012 | AM103: 2.484057432
AB104: 101 | AC104: 0 | AD104: 0 | AE104: 0 | AF104: 0.5333333611 | AG104: 0 | AH104: 0.4666666389 | AI104: 1 | AK104: 0.1777791573 | AL104: 0.0929780975 | AM104: 1.80450194
AB105: 102 | AC105: 0 | AD105: 0 | AE105: 0 | AF105: 0.5333333611 | AG105: 0.06666667014 | AH105: 0.3999999762 | AI105: 1.000000007 | AK105: 0.1720880005 | AL105: 0.08631977439 | AM105: 1.877762096
AB106: 103 | AC106: 0 | AD106: 0 | AE106: 0 | AF106: 0.5333333611 | AG106: 0.1333333403 | AH106: 0.3333333135 | AI106: 1.000000015 | AK106: 0.1663968437 | AL106: 0.07988855243 | AM106: 1.957687791
AB107: 104 | AC107: 0 | AD107: 0 | AE107: 0 | AF107: 0.5333333611 | AG107: 0.2000000179 | AH107: 0.2666666508 | AI107: 1.00000003 | AK107: 0.1607056877 | AL107: 0.07374385744 | AM107: 2.043637164
AB108: 105 | AC108: 0 | AD108: 0 | AE108: 0 | AF108: 0.5333333611 | AG108: 0.2666666806 | AH108: 0.1999999285 | AI108: 0.9999999702 | AK108: 0.1550145189 | AL108: 0.0679634437 | AM108: 2.133713523
AB109: 106 | AC109: 0 | AD109: 0 | AE109: 0 | AF109: 0.5333333611 | AG109: 0.3333333433 | AH109: 0.1333332658 | AI109: 0.9999999702 | AK109: 0.1493233613 | AL109: 0.06264825165 | AM109: 2.223898634
AB110: 107 | AC110: 0 | AD110: 0 | AE110: 0 | AF110: 0.5333333611 | AG110: 0.4000000358 | AH110: 0.06666660309 | AI110: 1 | AK110: 0.1436322069 | AL110: 0.0579264611 | AM110: 2.306928549
AB111: 108 | AC111: 0 | AD111: 0 | AE111: 0 | AF111: 0.5333333611 | AG111: 0.4666666985 | AH111: 0 | AI111: 1.00000006 | AK111: 0.1379410606 | AL111: 0.05395411327 | AM111: 2.371293917
AB112: 109 | AC112: 0 | AD112: 0 | AE112: 0 | AF112: 0.6000000238 | AG112: 0 | AH112: 0.3999999762 | AI112: 1 | AK112: 0.1762964205 | AL112: 0.09179843962 | AM112: 1.811538641
AB113: 110 | AC113: 0 | AD113: 0 | AE113: 0 | AF113: 0.6000000238 | AG113: 0.06666667014 | AH113: 0.3333333135 | AI113: 1.000000007 | AK113: 0.1706052637 | AL113: 0.08532714844 | AM113: 1.882229357
AB114: 111 | AC114: 0 | AD114: 0 | AE114: 0 | AF114: 0.6000000238 | AG114: 0.1333333403 | AH114: 0.2666666508 | AI114: 1.000000015 | AK114: 0.164914107 | AL114: 0.07911629975 | AM114: 1.958055514
AB115: 112 | AC115: 0 | AD115: 0 | AE115: 0 | AF115: 0.6000000238 | AG115: 0.2000000179 | AH115: 0.1999999285 | AI115: 0.9999999702 | AK115: 0.1592229397 | AL115: 0.07323218882 | AM115: 2.037668709
AB116: 113 | AC116: 0 | AD116: 0 | AE116: 0 | AF116: 0.6000000238 | AG116: 0.2666666806 | AH116: 0.1333332658 | AI116: 0.9999999702 | AK116: 0.1535317821 | AL116: 0.06776000559 | AM116: 2.11823746
AB117: 114 | AC117: 0 | AD117: 0 | AE117: 0 | AF117: 0.6000000238 | AG117: 0.3333333433 | AH117: 0.06666660309 | AI117: 0.9999999702 | AK117: 0.1478406245 | AL117: 0.06280749291 | AM117: 2.194652551
AB118: 115 | AC118: 0 | AD118: 0 | AE118: 0 | AF118: 0.6000000238 | AG118: 0.4000000358 | AH118: 0 | AI118: 1.00000006 | AK118: 0.1421494814 | AL118: 0.05850679055 | AM118: 2.258703309
AB119: 116 | AC119: 0 | AD119: 0 | AE119: 0 | AF119: 0.6666666865 | AG119: 0 | AH119: 0.3333333135 | AI119: 1 | AK119: 0.1748136838 | AL119: 0.09089180827 | AM119: 1.813295245
AB120: 117 | AC120: 0 | AD120: 0 | AE120: 0 | AF120: 0.6666666865 | AG120: 0.06666667014 | AH120: 0.2666666508 | AI120: 1.000000007 | AK120: 0.169122527 | AL120: 0.08463261276 | AM120: 1.880156145
AB121: 118 | AC121: 0 | AD121: 0 | AE121: 0 | AF121: 0.6666666865 | AG121: 0.1333333403 | AH121: 0.1999999285 | AI121: 0.9999999553 | AK121: 0.1634313589 | AL121: 0.07866978645 | AM121: 1.950321284
AB122: 119 | AC122: 0 | AD122: 0 | AE122: 0 | AF122: 0.6666666865 | AG122: 0.2000000179 | AH122: 0.1333332658 | AI122: 0.9999999702 | AK122: 0.1577402029 | AL122: 0.07307592779 | AM122: 2.021735575
AB123: 120 | AC123: 0 | AD123: 0 | AE123: 0 | AF123: 0.6666666865 | AG123: 0.2666666806 | AH123: 0.06666660309 | AI123: 0.9999999702 | AK123: 0.1520490454 | AL123: 0.06794223189 | AM123: 2.090732691
AB124: 121 | AC124: 0 | AD124: 0 | AE124: 0 | AF124: 0.6666666865 | AG124: 0.3333333433 | AH124: 0 | AI124: 1.00000003 | AK124: 0.1463578991 | AL124: 0.06338060647 | AM124: 2.151413606
AB125: 122 | AC125: 0 | AD125: 0 | AE125: 0 | AF125: 0.7333333492 | AG125: 0 | AH125: 0.2666666508 | AI125: 1 | AK125: 0.173330947 | AL125: 0.09026642889 | AM125: 1.809431801
AB126: 123 | AC126: 0 | AD126: 0 | AE126: 0 | AF126: 0.7333333492 | AG126: 0.06666667014 | AH126: 0.1999999285 | AI126: 0.9999999478 | AK126: 0.1676397789 | AL126: 0.08424355835 | AM126: 1.871238372
AB127: 124 | AC127: 0 | AD127: 0 | AE127: 0 | AF127: 0.7333333492 | AG127: 0.1333333403 | AH127: 0.1333332658 | AI127: 0.9999999553 | AK127: 0.1619486222 | AL127: 0.07855459303 | AM127: 1.93430602
AB128: 125 | AC128: 0 | AD128: 0 | AE128: 0 | AF128: 0.7333333492 | AG128: 0.2000000179 | AH128: 0.06666660309 | AI128: 0.9999999702 | AK128: 0.1562574662 | AL128: 0.07327734679 | AM128: 1.995943802
AB129: 126 | AC129: 0 | AD129: 0 | AE129: 0 | AF129: 0.7333333492 | AG129: 0.2666666806 | AH129: 0 | AI129: 1.00000003 | AK129: 0.1505663199 | AL129: 0.06850704551 | AM129: 2.051852023
AB130: 127 | AC130: 0 | AD130: 0 | AE130: 0 | AF130: 0.8000000715 | AG130: 0 | AH130: 0.1999999285 | AI130: 1 | AK130: 0.1718482089 | AL130: 0.08992816508 | AM130: 1.799749931
AB131: 128 | AC131: 0 | AD131: 0 | AE131: 0 | AF131: 0.8000000715 | AG131: 0.06666667014 | AH131: 0.1333332658 | AI131: 1.000000007 | AK131: 0.1661570522 | AL131: 0.08416420221 | AM131: 1.85538564
AB132: 129 | AC132: 0 | AD132: 0 | AE132: 0 | AF132: 0.8000000715 | AG132: 0.1333333403 | AH132: 0.06666660309 | AI132: 1.000000015 | AK132: 0.1604658954 | AL132: 0.07877214998 | AM132: =(AK132-RFR)/AL132 -> 1.910140772
AB133: 130 | AC133: 0 | AD133: 0 | AE133: 0 | AF133: 0.8000000715 | AG133: 0.2000000179 | AH133: 0 | AI133: =SUM(AC133:AH133) -> 1.000000089 | AK133: =AC133*$C$5+AD133*$C$6+AE133*$C$7+AF133*$C$8+AG133*$C$9+AH133*$C$10 -> 0.1547747507 | AL133: 0.07383352518 | AM133: 1.960826743 | AN133: =IF(AM133>=0.9999*$AM$2,"Max. Sharpe","") -> 
AB134: 131 | AC134: 0 | AD134: 0 | AE134: 0 | AF134: 0.8666667342 | AG134: 0 | AH134: 0.1333332658 | AI134: 1 | AK134: 0.1703654722 | AL134: =SDP(6,$E$5:$J$10,AC134:AH134) -> 0.0898802653 | AM134: 1.78421227
AB135: 132 | AC135: 0 | AD135: 0 | AE135: 0 | AF135: 0.8666667342 | AG135: 0.06666667014 | AH135: 0.06666660309 | AI135: 1.000000007 | AK135: 0.1646743154 | AL135: 0.08439543843 | AM135: 1.832733122
AB136: 133 | AC136: 0 | AD136: 0 | AE136: 0 | AF136: 0.8666667342 | AG136: 0.1333333403 | AH136: 0 | AI136: 1.000000075 | AK136: 0.1589831699 | AL136: 0.0793197304 | AM136: 1.878261174
AB137: 134 | AC137: 0 | AD137: 0 | AE137: 0 | AF137: 0.9333333969 | AG137: 0 | AH137: 0.06666660309 | AI137: 1 | AK137: 0.1688827354 | AL137: 0.09012318403 | AM137: 1.762950756
AB138: 135 | AC138: 0 | AD138: 0 | AE138: 0 | AF138: 0.9333333969 | AG138: 0.06666667014 | AH138: 0 | AI138: 1.000000067 | AK138: 0.16319159 | AL138: 0.08493472636 | AM138: 1.803639059
AB139: 136 | AC139: 0 | AD139: 0 | AE139: 0 | AF139: 1 | AG139: 0 | AH139: 0 | AI139: 1 | AK139: 0.1674 | AL139: 0.09065458924 | AM139: 1.736260694
AB140: 137 | AC140: 0 | AD140: 0 | AE140: 0.06666667014 | AF140: 0 | AG140: 0 | AH140: 0.9333333373 | AI140: 1.000000007 | AK140: 0.1802813232 | AL140: 0.103545785 | AM140: 1.644502702
AB141: 138 | AC141: 0 | AD141: 0 | AE141: 0.06666667014 | AF141: 0 | AG141: 0.06666667014 | AH141: 0.8666666746 | AI141: 1.000000015 | AK141: 0.1745901664 | AL141: 0.09620009363 | AM141: 1.710914825
AB142: 139 | AC142: 0 | AD142: 0 | AE142: 0.06666667014 | AF142: 0 | AG142: 0.1333333403 | AH142: 0.7999999523 | AI142: 0.9999999627 | AK142: 0.1688989983 | AL142: 0.0889498964 | AM142: 1.786387672
AB143: 140 | AC143: 0 | AD143: 0 | AE143: 0.06666667014 | AF143: 0 | AG143: 0.2000000179 | AH143: 0.7333333492 | AI143: 1.000000037 | AK143: 0.1632078536 | AL143: 0.08182060719 | AM143: 1.872484926
AB144: 141 | AC144: 0 | AD144: 0 | AE144: 0.06666667014 | AF144: 0 | AG144: 0.2666666806 | AH144: 0.6666666269 | AI144: 0.9999999776 | AK144: 0.1575166848 | AL144: 0.07484674454 | AM144: 1.970916513
AB145: 142 | AC145: 0 | AD145: 0 | AE145: 0.06666667014 | AF145: 0 | AG145: 0.3333333433 | AH145: 0.5999999642 | AI145: 0.9999999776 | AK145: 0.1518255272 | AL145: 0.06807613373 | AM145: 2.083336985
AB146: 143 | AC146: 0 | AD146: 0 | AE146: 0.06666667014 | AF146: 0 | AG146: 0.4000000358 | AH146: 0.5333333015 | AI146: 1.000000007 | AK146: 0.1461343728 | AL146: 0.06157582998 | AM146: 2.210841052
AB147: 144 | AC147: 0 | AD147: 0 | AE147: 0.06666667014 | AF147: 0 | AG147: 0.4666666985 | AH147: 0.4666666389 | AI147: 1.000000007 | AK147: 0.1404432152 | AL147: 0.05544099957 | AM147: 2.352829426
AB148: 145 | AC148: 0 | AD148: 0 | AE148: 0.06666667014 | AF148: 0 | AG148: 0.5333333611 | AH148: 0.3999999762 | AI148: 1.000000007 | AK148: 0.1347520576 | AL148: 0.04980687425 | AM148: 2.504715655
AB149: 146 | AC149: 0 | AD149: 0 | AE149: 0.06666667014 | AF149: 0 | AG149: 0.6000000238 | AH149: 0.3333333135 | AI149: 1.000000007 | AK149: 0.1290609001 | AL149: 0.04486250132 | AM149: 2.653906862
AB150: 147 | AC150: 0 | AD150: 0 | AE150: 0.06666667014 | AF150: 0 | AG150: 0.6666666865 | AH150: 0.2666666508 | AI150: 1.000000007 | AK150: 0.1233697425 | AL150: 0.04085905105 | AM150: 2.774654321
AB151: 148 | AC151: 0 | AD151: 0 | AE151: 0.06666667014 | AF151: 0 | AG151: 0.7333333492 | AH151: 0.1999999285 | AI151: 0.9999999478 | AK151: 0.1176785737 | AL151: 0.0380943343 | AM151: 2.826629619
AB152: 149 | AC152: 0 | AD152: 0 | AE152: 0.06666667014 | AF152: 0 | AG152: 0.8000000715 | AH152: 0.1333332658 | AI152: 1.000000007 | AK152: 0.1119874223 | AL152: 0.03684825823 | AM152: 2.767767793
AB153: 150 | AC153: 0 | AD153: 0 | AE153: 0.06666667014 | AF153: 0 | AG153: 0.8666667342 | AH153: 0.06666660309 | AI153: 1.000000007 | AK153: 0.1062962648 | AL153: 0.03727342933 | AM153: 2.583509661
AB154: 151 | AC154: 0 | AD154: 0 | AE154: 0.06666667014 | AF154: 0 | AG154: 0.9333333969 | AH154: 0 | AI154: 1.000000067 | AK154: 0.1006051185 | AL154: 0.039315667 | AM154: 2.30455504
AB155: 152 | AC155: 0 | AD155: 0 | AE155: 0.06666667014 | AF155: 0.06666667014 | AG155: 0 | AH155: 0.8666666746 | AI155: 1.000000015 | AK155: 0.1787985877 | AL155: 0.1006411985 | AM155: 1.677231494
AB156: 153 | AC156: 0 | AD156: 0 | AE156: 0.06666667014 | AF156: 0.06666667014 | AG156: 0.06666667014 | AH156: 0.7999999523 | AI156: 0.9999999627 | AK156: 0.1731074196 | AL156: 0.09332185239 | AM156: 1.747794492
AB157: 154 | AC157: 0 | AD157: 0 | AE157: 0.06666667014 | AF157: 0.06666667014 | AG157: 0.1333333403 | AH157: 0.7333333492 | AI157: 1.00000003 | AK157: 0.1674162741 | AL157: 0.08610567451 | AM157: 1.828175379
AB158: 155 | AC158: 0 | AD158: 0 | AE158: 0.06666667014 | AF158: 0.06666667014 | AG158: 0.2000000179 | AH158: 0.6666666269 | AI158: 0.9999999851 | AK158: 0.1617251068 | AL158: 0.07902090997 | AM158: 1.920062764
AB159: 156 | AC159: 0 | AD159: 0 | AE159: 0.06666667014 | AF159: 0.06666667014 | AG159: 0.2666666806 | AH159: 0.5999999642 | AI159: 0.9999999851 | AK159: 0.1560339493 | AL159: 0.07210630178 | AM159: 2.025259175
AB160: 157 | AC160: 0 | AD160: 0 | AE160: 0.06666667014 | AF160: 0.06666667014 | AG160: 0.3333333433 | AH160: 0.5333333015 | AI160: 0.9999999851 | AK160: 0.1503427917 | AL160: 0.06541584432 | AM160: 2.145394486
AB161: 158 | AC161: 0 | AD161: 0 | AE161: 0.06666667014 | AF161: 0.06666667014 | AG161: 0.4000000358 | AH161: 0.4666666389 | AI161: 1.000000015 | AK161: 0.1446516372 | AL161: 0.05902581289 | AM161: 2.281233085
AB162: 159 | AC162: 0 | AD162: 0 | AE162: 0.06666667014 | AF162: 0.06666667014 | AG162: 0.4666666985 | AH162: 0.3999999762 | AI162: 1.000000015 | AK162: 0.1389604797 | AL162: 0.0530448705 | AM162: 2.431158347
AB163: 160 | AC163: 0 | AD163: 0 | AE163: 0.06666667014 | AF163: 0.06666667014 | AG163: 0.5333333611 | AH163: 0.3333333135 | AI163: 1.000000015 | AK163: 0.1332693221 | AL163: 0.04762739688 | AM163: 2.588201964
AB164: 161 | AC164: 0 | AD164: 0 | AE164: 0.06666667014 | AF164: 0.06666667014 | AG164: 0.6000000238 | AH164: 0.2666666508 | AI164: 1.000000015 | AK164: 0.1275781646 | AL164: 0.04298695549 | AM164: 2.735205674
AB165: 162 | AC165: 0 | AD165: 0 | AE165: 0.06666667014 | AF165: 0.06666667014 | AG165: 0.6666666865 | AH165: 0.1999999285 | AI165: 0.9999999553 | AK165: 0.1218869957 | AL165: 0.03939906508 | AM165: 2.839838852
AB166: 163 | AC166: 0 | AD166: 0 | AE166: 0.06666667014 | AF166: 0.06666667014 | AG166: 0.7333333492 | AH166: 0.1333332658 | AI166: 0.9999999553 | AK166: 0.1161958382 | AL166: 0.03716979176 | AM166: 2.857046896
AB167: 164 | AC167: 0 | AD167: 0 | AE167: 0.06666667014 | AF167: 0.06666667014 | AG167: 0.8000000715 | AH167: 0.06666660309 | AI167: 1.000000015 | AK167: 0.1105046868 | AL167: 0.03654858842 | AM167: 2.749892435
AB168: 165 | AC168: 0 | AD168: 0 | AE168: 0.06666667014 | AF168: 0.06666667014 | AG168: 0.8666667342 | AH168: 0 | AI168: 1.000000075 | AK168: 0.1048135406 | AL168: 0.03761520982 | AM168: 2.520617086
AB169: 166 | AC169: 0 | AD169: 0 | AE169: 0.06666667014 | AF169: 0.1333333403 | AG169: 0 | AH169: 0.7999999523 | AI169: 0.9999999627 | AK169: 0.1773158409 | AL169: 0.09791788459 | AM169: 1.70873627
AB170: 167 | AC170: 0 | AD170: 0 | AE170: 0.06666667014 | AF170: 0.1333333403 | AG170: 0.06666667014 | AH170: 0.7333333492 | AI170: 1.00000003 | AK170: 0.1716246954 | AL170: 0.09064117074 | AM170: 1.783126741
AB171: 168 | AC171: 0 | AD171: 0 | AE171: 0.06666667014 | AF171: 0.1333333403 | AG171: 0.1333333403 | AH171: 0.6666666269 | AI171: 0.9999999776 | AK171: 0.1659335273 | AL171: 0.08347831666 | AM171: 1.867952464
AB172: 169 | AC172: 0 | AD172: 0 | AE172: 0.06666667014 | AF172: 0.1333333403 | AG172: 0.2000000179 | AH172: 0.5999999642 | AI172: 0.9999999925 | AK172: 0.1602423713 | AL172: 0.07646133751 | AM172: 1.964945634
AB173: 170 | AC173: 0 | AD173: 0 | AE173: 0.06666667014 | AF173: 0.1333333403 | AG173: 0.2666666806 | AH173: 0.5333333015 | AI173: 0.9999999925 | AK173: 0.1545512137 | AL173: 0.0696343407 | AM173: 2.075861023
AB174: 171 | AC174: 0 | AD174: 0 | AE174: 0.06666667014 | AF174: 0.1333333403 | AG174: 0.3333333433 | AH174: 0.4666666389 | AI174: 0.9999999925 | AK174: 0.1488600562 | AL174: 0.06305906922 | AM174: 2.202063207
AB175: 172 | AC175: 0 | AD175: 0 | AE175: 0.06666667014 | AF175: 0.1333333403 | AG175: 0.4000000358 | AH175: 0.3999999762 | AI175: 1.000000022 | AK175: 0.1431689017 | AL175: 0.05682297051 | AM175: 2.343575152
AB176: 173 | AC176: 0 | AD176: 0 | AE176: 0.06666667014 | AF176: 0.1333333403 | AG176: 0.4666666985 | AH176: 0.3333333135 | AI176: 1.000000022 | AK176: 0.1374777442 | AL176: 0.05105048418 | AM176: 2.497091776
AB177: 174 | AC177: 0 | AD177: 0 | AE177: 0.06666667014 | AF177: 0.1333333403 | AG177: 0.5333333611 | AH177: 0.2666666508 | AI177: 1.000000022 | AK177: 0.1317865866 | AL177: 0.04591680318 | AM177: 2.652331569
AB178: 175 | AC178: 0 | AD178: 0 | AE178: 0.06666667014 | AF178: 0.1333333403 | AG178: 0.6000000238 | AH178: 0.1999999285 | AI178: 0.9999999627 | AK178: 0.1260954178 | AL178: 0.04165875539 | AM178: 2.786819162
AB179: 176 | AC179: 0 | AD179: 0 | AE179: 0.06666667014 | AF179: 0.1333333403 | AG179: 0.6666666865 | AH179: 0.1333332658 | AI179: 0.9999999627 | AK179: 0.1204042602 | AL179: 0.0385674797 | AM179: 2.862625743
AB180: 177 | AC180: 0 | AD180: 0 | AE180: 0.06666667014 | AF180: 0.1333333403 | AG180: 0.7333333492 | AH180: 0.06666660309 | AI180: 0.9999999627 | AK180: 0.1147131027 | AL180: 0.0369370766 | AM180: 2.834904987
AB181: 178 | AC181: 0 | AD181: 0 | AE181: 0.06666667014 | AF181: 0.1333333403 | AG181: 0.8000000715 | AH181: 0 | AI181: 1.000000082 | AK181: 0.1090219626 | AL181: 0.03696138784 | AM181: 2.679065057
AB182: 179 | AC182: 0 | AD182: 0 | AE182: 0.06666667014 | AF182: 0.2000000179 | AG182: 0 | AH182: 0.7333333492 | AI182: 1.000000037 | AK182: 0.1758331179 | AL182: 0.09539137781 | AM182: 1.738449761
AB183: 180 | AC183: 0 | AD183: 0 | AE183: 0.06666667014 | AF183: 0.2000000179 | AG183: 0.06666667014 | AH183: 0.6666666269 | AI183: 0.9999999851 | AK183: 0.1701419498 | AL183: 0.08817603439 | AM183: 1.816161851
AB184: 181 | AC184: 0 | AD184: 0 | AE184: 0.06666667014 | AF184: 0.2000000179 | AG184: 0.1333333403 | AH184: 0.5999999642 | AI184: 0.9999999925 | AK184: 0.164450793 | AL184: 0.08108891547 | AM184: 1.904709073
AB185: 182 | AC185: 0 | AD185: 0 | AE185: 0.06666667014 | AF185: 0.2000000179 | AG185: 0.2000000179 | AH185: 0.5333333015 | AI185: 1.000000007 | AK185: 0.158759637 | AL185: 0.0741667673 | AM185: 2.005745194
AB186: 183 | AC186: 0 | AD186: 0 | AE186: 0.06666667014 | AF186: 0.2000000179 | AG186: 0.2666666806 | AH186: 0.4666666389 | AI186: 1.000000007 | AK186: 0.1530684795 | AL186: 0.0674603954 | AM186: 2.120777363
AB187: 184 | AC187: 0 | AD187: 0 | AE187: 0.06666667014 | AF187: 0.2000000179 | AG187: 0.3333333433 | AH187: 0.3999999762 | AI187: 1.000000007 | AK187: 0.1473773219 | AL187: 0.06104096398 | AM187: 2.250575892
AB188: 185 | AC188: 0 | AD188: 0 | AE188: 0.06666667014 | AF188: 0.2000000179 | AG188: 0.4000000358 | AH188: 0.3333333135 | AI188: 1.000000037 | AK188: 0.1416861675 | AL188: 0.05500902608 | AM188: 2.39390109
AB189: 186 | AC189: 0 | AD189: 0 | AE189: 0.06666667014 | AF189: 0.2000000179 | AG189: 0.4666666985 | AH189: 0.2666666508 | AI189: 1.000000037 | AK189: 0.1359950099 | AL189: 0.04950641841 | AM189: 2.545023736
AB190: 187 | AC190: 0 | AD190: 0 | AE190: 0.06666667014 | AF190: 0.2000000179 | AG190: 0.5333333611 | AH190: 0.1999999285 | AI190: 0.9999999776 | AK190: 0.1303038411 | AL190: 0.04472891614 | AM190: 2.689621199
AB191: 188 | AC191: 0 | AD191: 0 | AE191: 0.06666667014 | AF191: 0.2000000179 | AG191: 0.6000000238 | AH191: 0.1333332658 | AI191: 0.9999999776 | AK191: 0.1246126835 | AL191: 0.040931236 | AM191: 2.800127597
AB192: 189 | AC192: 0 | AD192: 0 | AE192: 0.06666667014 | AF192: 0.2000000179 | AG192: 0.6666666865 | AH192: 0.06666660309 | AI192: 0.9999999776 | AK192: 0.118921526 | AL192: 0.038405139 | AM192: 2.836118519
AB193: 190 | AC193: 0 | AD193: 0 | AE193: 0.06666667014 | AF193: 0.2000000179 | AG193: 0.7333333492 | AH193: 0 | AI193: 1.000000037 | AK193: 0.1132303797 | AL193: 0.03740912303 | AM193: 2.759497452
AB194: 191 | AC194: 0 | AD194: 0 | AE194: 0.06666667014 | AF194: 0.2666666806 | AG194: 0 | AH194: 0.6666666269 | AI194: 0.9999999776 | AK194: 0.1743503698 | AL194: 0.09307768196 | AM194: 1.765733379
AB195: 192 | AC195: 0 | AD195: 0 | AE195: 0.06666667014 | AF195: 0.2666666806 | AG195: 0.06666667014 | AH195: 0.5999999642 | AI195: 0.9999999851 | AK195: 0.1686592131 | AL195: 0.08594501019 | AM195: 1.846054968
AB196: 193 | AC196: 0 | AD196: 0 | AE196: 0.06666667014 | AF196: 0.2666666806 | AG196: 0.1333333403 | AH196: 0.5333333015 | AI196: 0.9999999925 | AK196: 0.1629680563 | AL196: 0.0789590627 | AM196: =(AK196-RFR)/AL196 -> 1.937308411
AB197: 194 | AC197: 0 | AD197: 0 | AE197: 0.06666667014 | AF197: 0.2666666806 | AG197: 0.2000000179 | AH197: 0.4666666389 | AI197: =SUM(AC197:AH197) -> 1.000000007 | AK197: =AC197*$C$5+AD197*$C$6+AE197*$C$7+AF197*$C$8+AG197*$C$9+AH197*$C$10 -> 0.1572769003 | AL197: 0.07216246426 | AM197: 2.040907303 | AN197: =IF(AM197>=0.9999*$AM$2,"Max. Sharpe","") -> 
AB198: 195 | AC198: 0 | AD198: 0 | AE198: 0.06666667014 | AF198: 0.2666666806 | AG198: 0.2666666806 | AH198: 0.3999999762 | AI198: 1.000000007 | AK198: 0.1515857427 | AL198: =SDP(6,$E$5:$J$10,AC198:AH198) -> 0.06561407447 | AM198: 2.157856281
AB199: 196 | AC199: 0 | AD199: 0 | AE199: 0.06666667014 | AF199: 0.2666666806 | AG199: 0.3333333433 | AH199: 0.3333333135 | AI199: 1.000000007 | AK199: 0.1458945852 | AL199: 0.05939606205 | AM199: 2.287939309
AB200: 197 | AC200: 0 | AD200: 0 | AE200: 0.06666667014 | AF200: 0.2666666806 | AG200: 0.4000000358 | AH200: 0.2666666508 | AI200: 1.000000037 | AK200: 0.1402034307 | AL200: 0.05362346396 | AM200: 2.428105555
... 2050 more rows

Sheet Mon. ROR Histogram
E2: ROR histogram from back testing and real trading the latest vesrion of the strategies (net of pro-forma performance fees)
A5: Bin | B5: Frequency | C5: Cumulative
A6: -0.0113062608 | B6: 1 | C6: 0.02631578947
A7: -0.00334269864 | B7: 5 | C7: 0.1578947368
A8: 0.00462086352 | B8: 7 | C8: 0.3421052632
A9: 0.01258442568 | B9: 12 | C9: 0.6578947368
A10: 0.02054798784 | B10: 6 | C10: 0.8157894737
A11: 0.02851155 | B11: 4 | C11: 0.9210526316
A12: More | B12: 3 | C12: 1
